Workbook

Sheet TOC
A1: Aldo Benini
A2: Combining indicators with the Betti-Verma aggregation method -
A3: An Excel implementation step-by-step
A5: Humanitarian analysts and poverty researchers may want to measure concepts like deprivation or protection risk by combining a number of indicators filled with survey data and/or expert judgments. The so-called "Betti-Verma double weighting rule" provides an aggregation method that penalizes redundant indicators and rewards informative ones. The workbook lays out the rationale for Betti-Verma. It demonstrates the use of the double-weighting rule for continuous indicators. Several analytic options are offered for the calculation of weights and scores; the results are compared. Further, the workbook stores three user-defined functions that are needed for data with sampling weights. We demonstrate the use of these functions in a worked example with data from a multi-sectoral needs assessment in Bangladesh. The outcome is an inter-sectoral living standards gap measure. We provide formulas for group-specific averages, and calculated them for all the combinations of administrative units and gender of household head. This workbook must be saved with the macro-enabled extension .xlsm. Tables should not be sorted differently. A separate workbook, published earlier, demonstrates the Betti-Verma method for binary indicators:
A6: http://aldo-benini.org/Level2/HumanitData/Benini__Betti_Verma_w_binary_indicators_in_Excel__190407.xlsm
A8: Table of Contents
B9: Acknowledgement
A10: Motivation: What are redundancy and discrimination? When is Betti-Verma needed? Practicalities and formulas. Select literature.
B11: Rationale_Betti_Verma
B12: B_V_weight_formulas
A13: Calculation of weights and scores with simulated data
B14: Demonstration_Setup
B15: Simulated_Data
B16: Betti_Verma_weights
B17: Betti_Verma_scores
B18: Indices_compared
B19: Contributions_by_indicator
A20: Special functions needed when sampling weights are incorporated
B21: BV_w_sampling_weights
B22: Weighting_function_code
A23: Worked example with real data and sampling weights
B24: MSNA_Setup
B25: MSNA_Data
B26: MSNA_BV_weights
B27: MSNA_BV_scores
B28: MSNA_Indices_compared
B29: MSNA_group_diff
A30: Convenience listing of all named ranges in the workbook
B31: Named_ranges
A33: Version 1.0.2.; 3 September 2019
A34: aldobenini [at] gmail.com
A35: Deprecated 26 January 2020

Sheet Acknowledgement
A1: Acknowledgement
A3: This workbook uses data from the 2018 Host Community Multi-Sector Needs Assessment (MSNA), Cox's Bazar, Bangladesh, in which the following organizations were involved:
A4: ECHO, ISCG, REACH, IOM NPM/ACAPS Analysis Hub, Translators Without Borders.
A6: I thank Mr. Sudeep Shrestha, Information Analyst, IOM NPM/ACAPS Analysis Hub, Cox's Bazar, for sharing a clean dataset and for his lead in creating the sector gap indices.
A8: For demonstration purposes, I collapsed the household-level indices to their means in 22 sub-samples. These are explained in the text.
A9: There are no data at the individual household level in this workbook.
A11: Community-contributed Excel functions are acknowledged in the respective VBA modules, which are accessible via Alt+F11.
A13: The content of this workbook were developed by me; and errors of modeling, computation, or interpretation are entirely mine.
A15: Aldo Benini
A16: 3 September 2019

Sheet Rationale_Betti_Verma
A1: Redundancy and discrimination among indicators
B2: The situation: A survey designer wants to measure a fairly broad concept, e.g. deprivation.
C3: The concept is "multi-dimensional", but the structure of dimensions is poorly understood; plausibly they overlap, i.e. they reinforce each other to unknown degrees.
C4: From the semantic universe of the concept, e.g. the (possibly infinite) set of things related to it, the designer takes a sample of those that can be measured (the "indicators"). Indicators, of course, are formed also from data already collected, for this or other purposes.
C5: The designer assumes that every indicator reflects some part of the concept, i.e. is positively correlated with the corresponding quantitative construct (which is not directly observable).
C6: Therefore he/she expects that the indicators are positively correlated among themselves, although in varying degrees.
C7: However, some aspect of the concept may be "oversampled" (several indicators capture it), whereas an other aspect may be approximated by none, one or very few indicators.
C8: Oversampled aspects should result in strongly positively correlated indicators (the reverse need not be the case), some of which are likely to be redundant.
C9: Indicators that have weak positive correlations with most of the others may either capture some aspect uniquely or be foreign to the concept in point.
C10: When numerous indicators are combined, some weak or moderate negative correlations are to be expected. However, strong negative ones signal validity problems and may require eliminating the concerned indicators.
C11: Moreover, some indicators discriminate better than others; i.e. have a wider relative spread (a larger coefficient of variation). They express deviations from the mean more distinctly.
C12: The aggregation of the indicators into the index should penalize redundancy (lower their weights) and reward discrimination (increase weights).
B25: The solution: The Betti-Verma double-weighting rule
C26: The Betti-Verma double-weighting rule is an aggregation method that achieves both objectives. It works for binary, count as well as continuous indicators (but not for ordinal ones).
C27: The Betti-Verma method has been implemented primarily in the statistical program STATA, in the context of multiple-deprivation studies. The STATA procedure "mdepriv" handles mixtures of binary, count and continuous indicators.
C28: For Excel users, this workbook demonstrates the calculation of Betti-Verma weights and scores for the case of continuous indicators. Count variables can be treated as continuous.
C29: A separate workbook demonstrates the method for binary indicators. See http://aldo-benini.org/Level2/HumanitData/Benini__Betti_Verma_w_binary_indicators_in_Excel__190407.xlsm .
C30: Betti-Verma returns weights on indicators. The weights are used for the simple additive aggregation. The resulting measure is an index of deprivation (or, if so interpreted, of severity).
C31: The indicators are commonly normalized in the range [0, 1]. The weights sum to 1. The resulting index is so-called "additively decomposable". I.e., the relative contribution of each indicators to the index is straightforward to calculate.
C32: This is of policy interest in terms of easy comparison of affected groups (e.g., by gender of the household head). Groups may differ not only on the index distribution, but also in terms of how much different indicators each contribute to the index.
C33: Betti-Verma weights adjust for redundancy and discrimination. However, there are no confidence intervals for the weights. The weights are driven by the distribution of the sample data; they are not population estimates.
C34: Betti-Verma and expert judgment work together. If the the experts agree or the analyst knows for sure that the correlated indicators each express a truly distinct dimension (no redundancy), Betti-Verma is not suitable.
A35: When is Betti-Verma justified for Excel users?
B36: Effort
C37: Calculating Betti-Verma weights and scores in STATA is fast and convenient. In Excel, calculations require several steps. The extra effort over much simpler methods, e.g., taking the mean of the normalized indicators, must be justified.
B38: Situations that call for Betti-Verma
C39: # 1: The concept has several dimensions; some are covered by just one indicator, others each by several. If in the latter groups, there is clear conceptual overlap, Betti-Verma will produce lower weights that compensate for redundancy in these indicators.
C40: Example: In the analysis of a needs assessment in host communities surrounding Rohingya refugee camps in Bangladesh, a living standards measure at the household level (n = 2,881) was constructed. It incorporated continuous gap measures in food security, livelihoods, shelter, WASH and education, as well as a binary measure of health care access. The first three were more strongly correlated as a result of being part of the same local economy that differentiates households by incomes and wealth. The last two are responsive in part to different providers from outside; they were only weakly correlated with the others. WASH holds a middle position. The Betti-Verma weights, in the order of first appearance, were: 0.05, 0.06, 0.10, 0.23, 0.19, and 0.37. The 0.37 for health care access is inflated by the binary form of the measure. Note that the sum of the first three weights is similar to the weights for WASH and education, reflecting the redundancy correction.
C41: #2: There is considerable measurement error in all indicators, but its extent may vary greatly. The pattern is poorly understood. If the errors are uncorrelated across indicators, the correlations will be attenuated, more so for indicators that are infected with larger errors. If the concept that they are supposed to measure is known to have only one dimension, this would be a classic situation for factor analysis. However, if there are several correlated, but conceptually distinct dimensions to it, factor analysis would likely not work (technically, the eigenvalues would be < 1, and some negative). Betti-Verma may come to the rescue. This would still be problematic because, other things being equal, it would assign higher weights to indicators with higher errors. But it would still adjust for conceptual overlap.
C42: #3: Again there is considerable measurement error. Different this time: The errors among a subset of the indicators are strongly correlated; in the rest, they are uncorrelated. Large correlated errors strengthen the correlations; uncorrelated ones weaken them. Correlated errors are fairly common in indicators when individual respondents offer estimates with the same bias. Example: Assume four WASH indicators measured by different methods. #1: Enumerators estimate the daily water use of the household by measuring storage vessels on site. #2-4: Household heads offer subjective estimates of the number of times garbage pits are emptied in a month, the number of days in the last week when they saw rats, and the distance to the nearest "acceptable" community latrine. The last two are inverted so that all four have a positive orientation. Plausibly, the respondent's personal value orientation towards hygiene moves the three estimates in the same direction. These errors, however, are likely uncorrelated with those in the estimates that the enumerators make of daily water volumes. Betti-Verma will decrease the weights on the correlated subjective estimates, and increase the weight on the water use. In this situation, it works as a partial error corrective.
A43: Practicalities
B44: Preparation
C45: Normalization: Betti-Verma expects indicators with ranges in the interval [0, 1] (the minimum may be greater than zero, the maximum may be smaller than one). Normalizing indicators that originally have minima >= 0 and maxima > 1 by dividing each by its respective maximum preserves the coefficients of variation, which Betti-Verma uses in calculating the weights.
C46: Consistent orientation: Ensure that all indicators have the same orientation. Normally, Betti-Verma is deprivation- (or severity-) oriented. I.e., higher values denote worse conditions, lower values point towards preferred states. It also works with indicators all of which have positive orientation (the scores would then be interpreted positively, too - e.g., as living standards). Normalized indicators that need reversion are replaced by x' = 1 - x.
C47: Incorporating ordinal and/or binary indicators: One or two such variables, if they have to figure in the composite measure, may be admitted, without endangering the validity of the weighting too much. For the first of the two Betti-Verma weightings, the option "Equal" has to be taken (see sheet "Betti_Verma_weights"). For the ordinal indicator(s), a suitable transformation to a ratio-level variable must be applied. In the severity context, an indicator with five levels (e.g., from 1 = "no problem" to 5 = "catastrophic"), could plausibly be transformed via an escalating function such as x' = x^2/25. This returns the sequence 0.04 0.16 0.36 0.64 and 1.00, with increasing differences between adjacent values.
B48: Calculation
C49: Follow the pattern, formulas and formats from sheets "Betti_Verma_weights", "Betti-Verma_scores" and "Indices_compared". We demonstrate three analytic variants of the weights. If you decide on a suitable one for your purposes right away, no need to compute the others.
C50: With sampling weights: For interested users, we demonstrate three user-written Excel functions for weighted mean, weighted standard deviation, and weighted Pearson-moment correlation coefficient. These are needed in order to produce the building blocks for the calulation of the Betti-Verma weights, scores and subsequent statistics of interest. We provide a worked example using aggregated (by admin. unit and HH head gender) data from a host community needs assessment in Bangladesh.
B51: Review
C52: The results of the calculations should not be accepted blindly. The weights need to be plausible in the light of the analysis objectives, and in terms of the intended redundancy reduction and preference for indicators with high variability. Implausibly high weights on weakly correlated indicators may justify assigning defensibly lower weights manually (then rescaling all weights to sum to one) or excluding some when their relationship with the concept of interest must be doubted. Conversely, very low weights resulting from very small coefficients of variation throw up two questions: 1. Do the indicators discriminate enough for the objective of the study / assessment? 2. Are the small C.o.V. a statistical artefact because the indicators lack natural zero points? In the latter case, Betti-Verma with equal first weights will be more appropriate.
A53: Sources
B54: Pi Alperin, M. N. and P. Van Kerm (2009, rev. 2014). mdepriv - Synthetic indicators of multiple deprivation. v2.0 (revised March 2014). Esch/Alzette, Luxembourg, CEPS/INSTEAD.
B55: [On the internet, only the 2009 version is available: http://medim.ceps.lu/stata/mdepriv_v1.pdf . We will make the 2014 one available.]
B56: Betti, G. and V. Verma (1999). Measuring the degree of poverty in a dynamic and comparative context: a multi-dimensional approach using fuzzy set theory. Proceedings of the Sixth Islamic Countries Conference on Statistical Science ICCS-VI, Lahore (Pakistan), August 27-31, Lahore (Pakistan).
B57: https://www.researchgate.net/profile/Gianni_Betti/publication/241227568_Measuring_the_degree_of_poverty_in_a_dynamic_and_comparative_context_A_multi-dimensional_approach_using_fuzzy_set_theory/links/00b49533307370c675000000/Measuring-the-degree-of-poverty-in-a-dynamic-and-comparative-context-A-multi-dimensional-approach-using-fuzzy-set-theory.pdf
B58: [Going beyond the initial approach:] Betti, G., F. Gagliardi, A. Lemmi and V. Verma (2015). "Comparative measures of multidimensional deprivation in the European Union." Empirical Economics 49(3): 1071-1100.
B59: https://www.researchgate.net/profile/Gianni_Betti/publication/270454990_Comparative_measures_of_multidimensional_deprivation_in_the_European_Union/links/5630b6c408aee0eba0196822/Comparative-measures-of-multidimensional-deprivation-in-the-European-Union.pdf

Sheet B_V_weight_formulas
A1: Pi Alperin, M. N. and P. Van Kerm (2009, rev. 2014). mdepriv - Synthetic indicators of multiple deprivation. v2.0 (revised March 2014). Esch/Alzette, Luxembourg, CEPS/INSTEAD, page 2:
A2: Note: This workbook implements the second weight factor, wbj, only for the case rohH = 0. This should be sufficient for most situations.
A3: For the first weight, waj, we provide two alternatives to the coefficient of variation.

Sheet Demonstration_Setup
A1: Set-up for simulating the demonstration data
A2: We demonstrate the effect of five fairly typical indicator situations on the resulting weights when the Betti-Verma double-weighting rule is used in aggregation.
A3: To this purpose, we create 10 normally-distributed indicators, with 100 observations and approximating the correlation pattern shown on the right side of this table.
A4: The next sheet holds descriptive statistics and actual correlation coefficients of the simulated variables.
I5: Desired correlation pattern:
A6: Situation of interest | B6: Indicator | C6: Correlations with the others | D6: Mean is relatively .. | E6: Spread is relatively .. | F6: Supposed to demonstrate what? | I6: x1 | J6: x2 | K6: x3 | L6: x4 | M6: x5 | N6: x6 | O6: x7 | P6: x8 | Q6: x9 | R6: x10
A7: Several indicators strongly associated | B7: x1 | C7: Strong among x1 - x4, weak or zero with the others | D7: small | E7: narrow | F7: Strong intercorrelations diminish weights; high relative information value (wide spread/small mean) increases them. | H7: x1 | I7: 1 | J7: 0.8 | K7: 0.8 | L7: 0.8 | M7: 0 | N7: -0.1 | O7: 0 | P7: 0.1 | Q7: -0.1 | R7: 0
B8: x2 | D8: small | E8: wide | H8: x2 | I8: 0.8 | J8: 1 | K8: 0.8 | L8: 0.8 | M8: 0 | N8: -0.1 | O8: 0 | P8: 0.1 | Q8: -0.1 | R8: 0
B9: x3 | D9: large | E9: narrow | H9: x3 | I9: 0.8 | J9: 0.8 | K9: 1 | L9: 0.8 | M9: -0.1 | N9: 0 | O9: 0 | P9: 0.1 | Q9: 0 | R9: -0.1
B10: x4 | D10: large | E10: wide | H10: x4 | I10: 0.8 | J10: 0.8 | K10: 0.8 | L10: 1 | M10: -0.1 | N10: 0 | O10: 0 | P10: 0.1 | Q10: 0 | R10: -0.1
A11: One pair strongly associated | B11: x5 | C11: Strong between x5 - x6, weak or zero with the others | D11: centered | E11: narrow | F11: Only two strongly correlated, weights higher, more so for x6 | H11: x5 | I11: 0 | J11: 0 | K11: -0.1 | L11: -0.1 | M11: 1 | N11: 0.8 | O11: 0.1 | P11: 0 | Q11: 0.1 | R11: -0.1
B12: x6 | D12: centered | E12: wide | H12: x6 | I12: -0.1 | J12: -0.1 | K12: 0 | L12: 0 | M12: 0.8 | N12: 1 | O12: 0.1 | P12: 0 | Q12: 0.1 | R12: -0.1
A13: Isolates, but very few negative associations | B13: x7 | C13: Zero between x7-x8, weak (mostly positively) or zero with the others | D13: centered | E13: narrow | F13: A bit stronger than x5 x6 because zero between themselves | H13: x7 | I13: 0 | J13: 0 | K13: 0 | L13: 0 | M13: 0.1 | N13: 0.1 | O13: 1 | P13: 0 | Q13: 0.1 | R13: -0.1
B14: x8 | D14: centered | E14: wide | H14: x8 | I14: 0.1 | J14: 0.1 | K14: 0.1 | L14: 0.1 | M14: 0 | N14: 0 | O14: 0 | P14: 1 | Q14: 0.1 | R14: -0.1
A15: Isolate, mixed | B15: x9 | C15: Weak or zero | D15: centered | E15: medium | F15: Low weight sum boosts weight high | H15: x9 | I15: -0.1 | J15: -0.1 | K15: 0 | L15: 0 | M15: 0.1 | N15: 0.1 | O15: 0.1 | P15: 0.1 | Q15: 1 | R15: -0.1
A16: Isolate , negative | B16: x10 | C16: Zero or weakly negative | D16: centered | E16: medium | F16: Unsuitable indicator; will get zero weight | H16: x10 | I16: 0 | J16: 0 | K16: -0.1 | L16: -0.1 | M16: -0.1 | N16: -0.1 | O16: -0.1 | P16: -0.1 | Q16: -0.1 | R16: 1

Sheet Simulated_Data
A1: Simulated data, descriptive statistics, correlation matrix, visualization of association pattern:
A4: id | B4: x1 | C4: x2 | D4: x3 | E4: x4 | F4: x5 | G4: x6 | H4: x7 | I4: x8 | J4: x9 | K4: x10 | N4: The following statistics are noteworthy:
A5: 1 | B5: 0 | C5: 0.0968057 | D5: 0.3687922 | E5: 0.3125061 | F5: 0.1741119 | G5: 0 | H5: 0.6878377 | I5: 0.1958989 | J5: 0.0556548 | K5: 0.7212605 | N5: Indicator | O5: Mean | P5: SD | Q5: C.o.V. | S5: SD =
A6: 2 | B6: 0.3858637 | C6: 0.3118555 | D6: 0.7619708 | E6: 0.7799424 | F6: 0.8320824 | G6: 0.8805346 | H6: 0.6723175 | I6: 1 | J6: 1 | K6: 0.2731308 | N6: x1 | O6: =AVERAGE(INDIRECT($N6&"_")) -> 0.307356805 | P6: =_xlfn.STDEV.S(INDIRECT($N6&"_")) -> 0.1860677825 | Q6: =P6/O6 -> 0.6053803902 | S6: Standard deviation
A7: 3 | B7: 0.4583524 | C7: 0.5856686 | D7: 0.7078855 | E7: 1 | F7: 0.7745097 | G7: 0.9074144 | H7: 0.6061915 | I7: 0.8334434 | J7: 0.4730663 | K7: 0.6585976 | N7: x2 | O7: =AVERAGE(INDIRECT($N7&"_")) -> 0.34529384 | P7: =_xlfn.STDEV.S(INDIRECT($N7&"_")) -> 0.3116665885 | Q7: =P7/O7 -> 0.9026126515
A8: 4 | B8: 0.121715 | C8: 0 | D8: 0.4294099 | E8: 0.0251318 | F8: 0.4240513 | G8: 0.0790777 | H8: 0.4566294 | I8: 0.9116816 | J8: 0.3143635 | K8: 0.2963912 | N8: x3 | O8: 0.695754 | P8: 0.1919044173 | Q8: 0.2758222264
A9: 5 | B9: 0.3588835 | C9: 0.259292 | D9: 0.6504753 | E9: 0.6147868 | F9: 0.5497213 | G9: 0.5838792 | H9: 0.2671064 | I9: 0.8057551 | J9: 0.61744 | K9: 0.4765985 | N9: x4 | O9: 0.659874974 | P9: 0.319608236 | Q9: 0.4843466545
A10: 6 | B10: 0.1229391 | C10: 0 | D10: 0.2809352 | E10: 0.0464795 | F10: 0.3788213 | G10: 0.1047234 | H10: 0.5335307 | I10: 0.5587463 | J10: 0.7845391 | K10: 0.779965 | N10: x5 | O10: 0.500103018 | P10: 0.1997369635 | Q10: 0.3993916378 | S10: C.o.V. =
A11: 7 | B11: 0.5208004 | C11: 0.5733281 | D11: 0.8956906 | E11: 1 | F11: 0.6445332 | G11: 0.9093123 | H11: 0.2849174 | I11: 0.0533199 | J11: 0.4527252 | K11: 0.593459 | N11: x6 | O11: 0.508182163 | P11: 0.3355611774 | Q11: =P11/O11 -> 0.6603167168 | S11: Coefficient of variation =
A12: 8 | B12: 0.3042715 | C12: 0.4657593 | D12: 0.8081882 | E12: 0.6814616 | F12: 0.4735529 | G12: 0.6908637 | H12: 0.6439291 | I12: 1 | J12: 1 | K12: 0.4845174 | N12: x7 | O12: 0.499537427 | P12: 0.1987999038 | Q12: 0.3979679862 | S12: Standard deviation / Mean
A13: 9 | B13: 0.4828641 | C13: 0.7545037 | D13: 0.9375651 | E13: 1 | F13: 0.4135486 | G13: 0.5652282 | H13: 0.1375477 | I13: 0 | J13: 0.7248528 | K13: 0.1401716 | N13: x8 | O13: 0.4992101 | P13: 0.3347192413 | Q13: 0.670497735
A14: 10 | B14: 0.6053243 | C14: 0.4456611 | D14: 0.8799941 | E14: 0.9789482 | F14: 0.2311956 | G14: 0.0177647 | H14: 0.537074 | I14: 0.9754481 | J14: 0.2729346 | K14: 0.5002393 | N14: x9 | O14: 0.50234909 | P14: 0.2666228211 | Q14: 0.5307520734
A15: 11 | B15: 0.012052 | C15: 0 | D15: 0.6653038 | E15: 0.5139226 | F15: 0.6041155 | G15: 0.9496343 | H15: 0.495636 | I15: 0.1392026 | J15: 0.5267801 | K15: 0.127625 | N15: x10 | O15: 0.493649802 | P15: 0.2776320695 | Q15: 0.5624069296
A16: 12 | B16: 0.1111596 | C16: 0.3123208 | D16: 0.5186059 | E16: 0.5093064 | F16: 0.5569324 | G16: 0.359862 | H16: 0.6048931 | I16: 1 | J16: 0.624715 | K16: 0.6274248
A17: 13 | B17: 0.1168118 | C17: 0.2536306 | D17: 0.595008 | E17: 0.5099083 | F17: 0.6336834 | G17: 0.9068578 | H17: 0.4104549 | I17: 0.0777218 | J17: 0.2003034 | K17: 0.4184013 | N17: Observed correlation matrix:
A18: 14 | B18: 0.577566 | C18: 0.990168 | D18: 0.9285766 | E18: 0.9626926 | F18: 0.6742935 | G18: 0.6597928 | H18: 0.276921 | I18: 0.5202819 | J18: 0 | K18: 0.8553252 | O18: x1 | P18: x2 | Q18: x3 | R18: x4 | S18: x5 | T18: x6 | U18: x7 | V18: x8 | W18: x9 | X18: x10
A19: 15 | B19: 0.2266963 | C19: 0.2427944 | D19: 0.748822 | E19: 0.4134571 | F19: 0.5375689 | G19: 0.8008693 | H19: 0.3304468 | I19: 0.91888 | J19: 0.4413773 | K19: 0.1638093 | N19: x1 | O19: =CORREL(INDIRECT($N19&"_"),(INDIRECT(O$18&"_"))) -> 1 | P19: =CORREL(INDIRECT($N19&"_"),(INDIRECT(P$18&"_"))) -> 0.7867224513 | Q19: 0.7988917415 | R19: 0.7764189932 | S19: 0.003950317378 | T19: -0.06727548781 | U19: 0.01448721594 | V19: 0.07751921112 | W19: -0.1009583302 | X19: -0.009463199427
A20: 16 | B20: 0.1623919 | C20: 0 | D20: 0.5993113 | E20: 0.232293 | F20: 0.7688294 | G20: 1 | H20: 0.2406394 | I20: 1 | J20: 0.40823 | K20: 0.6971499 | N20: x2 | O20: =CORREL(INDIRECT($N20&"_"),(INDIRECT(O$18&"_"))) -> 0.7867224513 | P20: 1 | Q20: 0.7225749116 | R20: 0.709558778 | S20: 0.0343784742 | T20: -0.03871669808 | U20: -0.01190870726 | V20: 0.0761416071 | W20: -0.1199038431 | X20: 0.018594707
A21: 17 | B21: 0.4185179 | C21: 0 | D21: 0.829589 | E21: 0.9049548 | F21: 0.1610498 | G21: 0.0139629 | H21: 0.2331759 | I21: 0.8416876 | J21: 0.6132043 | K21: 0.3630371 | N21: x3 | O21: 0.7988917415 | P21: 0.7225749116 | Q21: 1 | R21: 0.8145695992 | S21: -0.1098356489 | T21: 0.01019221957 | U21: 0.006363463447 | V21: 0.06505020642 | W21: -0.0004778572443 | X21: -0.1132698422
A22: 18 | B22: 0.0767288 | C22: 0 | D22: 0.3289277 | E22: 0 | F22: 0.5070903 | G22: 0.2190742 | H22: 0.6064554 | I22: 0.5470896 | J22: 0.9637645 | K22: 0.8299712 | N22: x4 | O22: 0.7764189932 | P22: 0.709558778 | Q22: 0.8145695992 | R22: 1 | S22: -0.1378004285 | T22: 0.0156782208 | U22: 0.04343157527 | V22: 0.07156995875 | W22: -0.01968544678 | X22: -0.1247770596
A23: 19 | B23: 0.2200056 | C23: 0.1472971 | D23: 0.520771 | E23: 0.2939337 | F23: 0.4132566 | G23: 0.0834329 | H23: 0.1061209 | I23: 0.3033052 | J23: 0.2971486 | K23: 0.3668494 | N23: x5 | O23: 0.003950317378 | P23: 0.0343784742 | Q23: -0.1098356489 | R23: -0.1378004285 | S23: 1 | T23: 0.7854411503 | U23: 0.0997376216 | V23: -0.009612665439 | W23: 0.10903368 | X23: -0.09587775755
A24: 20 | B24: 0.3125771 | C24: 0.228437 | D24: 0.7316207 | E24: 0.5415294 | F24: 0.7062327 | G24: 0.7176274 | H24: 0.5877628 | I24: 0.1262541 | J24: 0.4499909 | K24: 0 | N24: x6 | O24: -0.06727548781 | P24: -0.03871669808 | Q24: 0.01019221957 | R24: 0.0156782208 | S24: 0.7854411503 | T24: 1 | U24: 0.09732561807 | V24: -0.01491457315 | W24: 0.1022576306 | X24: -0.1017615959
A25: 21 | B25: 0.3000937 | C25: 0.2684852 | D25: 0.9026445 | E25: 0.594659 | F25: 0.4265278 | G25: 0.6119498 | H25: 0.9811963 | I25: 0.2425937 | J25: 1 | K25: 0.5116683 | N25: x7 | O25: 0.01448721594 | P25: -0.01190870726 | Q25: 0.006363463447 | R25: 0.04343157527 | S25: 0.0997376216 | T25: 0.09732561807 | U25: 1 | V25: -0.0007479750155 | W25: 0.09175495138 | X25: -0.08271927409
A26: 22 | B26: 0 | C26: 0 | D26: 0.6018088 | E26: 0.3013783 | F26: 0.5772533 | G26: 1 | H26: 0.6388542 | I26: 1 | J26: 0.5807465 | K26: 0.1725565 | N26: x8 | O26: 0.07751921112 | P26: 0.0761416071 | Q26: 0.06505020642 | R26: 0.07156995875 | S26: -0.009612665439 | T26: -0.01491457315 | U26: -0.0007479750155 | V26: 1 | W26: 0.08050851001 | X26: -0.09452479234
A27: 23 | B27: 0.4021602 | C27: 0.8825381 | D27: 0.7807156 | E27: 0.9140548 | F27: 0.5745323 | G27: 0.5569978 | H27: 0.6817281 | I27: 0.9808288 | J27: 0.0996497 | K27: 0.2696031 | N27: x9 | O27: -0.1009583302 | P27: -0.1199038431 | Q27: -0.0004778572443 | R27: -0.01968544678 | S27: 0.10903368 | T27: 0.1022576306 | U27: 0.09175495138 | V27: 0.08050851001 | W27: 1 | X27: -0.09555572487
A28: 24 | B28: 0.25985 | C28: 0.0913804 | D28: 0.799543 | E28: 0.8774245 | F28: 0.3424573 | G28: 0.3223761 | H28: 0.5799668 | I28: 0.7274808 | J28: 0.4061278 | K28: 0.325681 | N28: x10 | O28: -0.009463199427 | P28: 0.018594707 | Q28: -0.1132698422 | R28: -0.1247770596 | S28: -0.09587775755 | T28: -0.1017615959 | U28: -0.08271927409 | V28: -0.09452479234 | W28: -0.09555572487 | X28: 1
A29: 25 | B29: 0.1818306 | C29: 0 | D29: 0.5069004 | E29: 0.690071 | F29: 0.6324694 | G29: 0.7464464 | H29: 0.4978698 | I29: 0.5154009 | J29: 1 | K29: 0.4943389
A30: 26 | B30: 0.5625388 | C30: 0.8092554 | D30: 0.8270568 | E30: 0.7997136 | F30: 0.4381184 | G30: 0.1902792 | H30: 0.5961446 | I30: 1 | J30: 0 | K30: 0.6412385
A31: 27 | B31: 0.7037758 | C31: 1 | D31: 0.9935858 | E31: 1 | F31: 0.8210068 | G31: 0.834695 | H31: 0.418374 | I31: 0.3868173 | J31: 0.2932758 | K31: 0.9349607
A32: 28 | B32: 0.8005483 | C32: 1 | D32: 1 | E32: 1 | F32: 0.5947857 | G32: 0.5991236 | H32: 0.4457135 | I32: 1 | J32: 0.6751013 | K32: 0.4742281
A33: 29 | B33: 0.1891088 | C33: 0.0843515 | D33: 0.425018 | E33: 0.5954822 | F33: 0.7833694 | G33: 0.7327172 | H33: 0.9243801 | I33: 0.5689931 | J33: 0.433828 | K33: 0
A34: 30 | B34: 0.3701656 | C34: 0.4828261 | D34: 1 | E34: 1 | F34: 0.5440514 | G34: 0.7001439 | H34: 0.3142087 | I34: 0.9459723 | J34: 0.412677 | K34: 0.1672727
A35: 31 | B35: 0.429385 | C35: 0.3769095 | D35: 0.8778751 | E35: 1 | F35: 0.2470365 | G35: 0.5558574 | H35: 0.310756 | I35: 0.1550062 | J35: 0.2695584 | K35: 0.3711611
A36: 32 | B36: 0.4654393 | C36: 0.8559191 | D36: 0.8593451 | E36: 1 | F36: 0.5855711 | G36: 0.7011928 | H36: 0.5481676 | I36: 0.4667218 | J36: 0.4071583 | K36: 1
A37: 33 | B37: 0 | C37: 0 | D37: 0.2329369 | E37: 0.1940093 | F37: 0.4387861 | G37: 0.0951644 | H37: 0.5830927 | I37: 0.0645121 | J37: 0.8706884 | K37: 0.6144819
A38: 34 | B38: 0.3989795 | C38: 0.3930176 | D38: 0.856752 | E38: 1 | F38: 0 | G38: 0 | H38: 0.2319756 | I38: 0.1958052 | J38: 0.4546246 | K38: 1
A39: 35 | B39: 0.2606273 | C39: 0.2912093 | D39: 0.7131791 | E39: 0.9457033 | F39: 0.0988227 | G39: 0 | H39: 0.2541153 | I39: 0.8841928 | J39: 0.5646732 | K39: 1
A40: 36 | B40: 0.3639923 | C40: 0.3872223 | D40: 0.7627641 | E40: 0.5973515 | F40: 0.6093989 | G40: 0.4998936 | H40: 0.6094614 | I40: 0.8673869 | J40: 0.2970046 | K40: 0.9044874
A41: 37 | B41: 0 | C41: 0 | D41: 0.2839716 | E41: 0 | F41: 0.5527268 | G41: 0.982987 | H41: 0.7756777 | I41: 0.1691598 | J41: 0 | K41: 0.7561175
A42: 38 | B42: 0.2811451 | C42: 0.064147 | D42: 0.7024784 | E42: 0.8674313 | F42: 0.4978475 | G42: 0.4841623 | H42: 0.386055 | I42: 0.0884904 | J42: 0.203756 | K42: 0.6291032
A43: 39 | B43: 0 | C43: 0 | D43: 0.2265669 | E43: 0 | F43: 0.6610788 | G43: 0.7078394 | H43: 0.435861 | I43: 0.2060389 | J43: 0.3179049 | K43: 0.6754435
A44: 40 | B44: 0.3664017 | C44: 0.488075 | D44: 0.8839373 | E44: 0.8888274 | F44: 0.3044507 | G44: 0.519312 | H44: 0.7310925 | I44: 0.0572397 | J44: 0.8439354 | K44: 0.1594769
A45: 41 | B45: 0.3477747 | C45: 0.7191976 | D45: 0.7254909 | E45: 0.9819645 | F45: 0.5602287 | G45: 0.6001927 | H45: 0.3126649 | I45: 0.0564544 | J45: 0 | K45: 0.5172656
A46: 42 | B46: 0.3079791 | C46: 0.161336 | D46: 0.7056869 | E46: 0.8400641 | F46: 0.2810281 | G46: 0.2898176 | H46: 0.3691318 | I46: 0.369734 | J46: 0.7528108 | K46: 0.3476059
A47: 43 | B47: 0.0474952 | C47: 0.1278525 | D47: 0.5849832 | E47: 0.2605936 | F47: 0.1404646 | G47: 0 | H47: 0.8095619 | I47: 0.9404664 | J47: 0.33499 | K47: 0.8384601
A48: 44 | B48: 0.4067583 | C48: 0.6835495 | D48: 0.9469399 | E48: 1 | F48: 0.3697859 | G48: 0 | H48: 1 | I48: 0.7929317 | J48: 0.550356 | K48: 0
A49: 45 | B49: 0 | C49: 0 | D49: 0.3275697 | E49: 0 | F49: 0.9325349 | G49: 1 | H49: 0.632754 | I49: 0.57076 | J49: 0.3325768 | K49: 0.4610827
A50: 46 | B50: 0.3939728 | C50: 0 | D50: 0.6627967 | E50: 0.1881032 | F50: 0.6113792 | G50: 0.4770674 | H50: 0.5070109 | I50: 0.5750343 | J50: 0.6718372 | K50: 0.8968734
A51: 47 | B51: 0.4914771 | C51: 0.7422754 | D51: 0.7502159 | E51: 0.8080292 | F51: 0.1606939 | G51: 0 | H51: 0.448956 | I51: 1 | J51: 0.327496 | K51: 0.3227399
A52: 48 | B52: 0.1207359 | C52: 0 | D52: 0.2635962 | E52: 0.0218254 | F52: 0.8672594 | G52: 0.7054214 | H52: 0.238626 | I52: 0.4118882 | J52: 0.5937987 | K52: 0.7467542
A53: 49 | B53: 0.1523349 | C53: 0 | D53: 0.6522697 | E53: 0.4915343 | F53: 0.3003628 | G53: 0.4527792 | H53: 0.4091339 | I53: 0.7778324 | J53: 0.7267094 | K53: 0.1542463
A54: 50 | B54: 0.2717729 | C54: 0.2310903 | D54: 0.5659772 | E54: 0.270966 | F54: 0.4710952 | G54: 0.1246777 | H54: 0.3944146 | I54: 0 | J54: 0 | K54: 0.6272563
A55: 51 | B55: 0.1734011 | C55: 0 | D55: 0.4125529 | E55: 0.4540203 | F55: 0.7684856 | G55: 0.9767586 | H55: 0.4870354 | I55: 0 | J55: 0.5160033 | K55: 1
A56: 52 | B56: 0.543967 | C56: 1 | D56: 0.8305867 | E56: 1 | F56: 0.7103869 | G56: 0.6982931 | H56: 0.4346853 | I56: 0.5215951 | J56: 0.2739233 | K56: 0.2166053
A57: 53 | B57: 0.4292685 | C57: 0.4824168 | D57: 0.7850456 | E57: 0.8587019 | F57: 0.7464943 | G57: 0.7720405 | H57: 0.7248303 | I57: 0.3959121 | J57: 0.5688924 | K57: 0.5105106
A58: 54 | B58: 0.5729691 | C58: 0.8061245 | D58: 1 | E58: 0.9628929 | F58: 0.4686971 | G58: 0.4947651 | H58: 0.3068752 | I58: 0.6076699 | J58: 0.9132944 | K58: 0.4313907 | N58: Following:
A59: 55 | B59: 0.2325169 | C59: 0.2401825 | D59: 0.7544222 | E59: 0.4775348 | F59: 0.491221 | G59: 0.6486552 | H59: 0.5129402 | I59: 0 | J59: 0.6361198 | K59: 1 | N59: Vigneau, E. and E. Qannari (2003). "Clustering of variables around latent components." Communications in Statistics-Simulation and Computation 32(4): 1131-1150.
A60: 56 | B60: 0.4285612 | C60: 0.3285111 | D60: 0.5962099 | E60: 1 | F60: 0.6185641 | G60: 1 | H60: 0.4719712 | I60: 0.9154276 | J60: 0.6825845 | K60: 0.2197329
A61: 57 | B61: 0.1359909 | C61: 0.1404422 | D61: 0.5907838 | E61: 0.8245483 | F61: 0.3604345 | G61: 0.5250925 | H61: 0.5412716 | I61: 0.7770908 | J61: 0.2841018 | K61: 0.8957928
A62: 58 | B62: 0 | C62: 0 | D62: 0.6119863 | E62: 0.2241706 | F62: 0.3449166 | G62: 0.3890145 | H62: 0.4384505 | I62: 0.3883306 | J62: 0.3084237 | K62: 0.4657034
A63: 59 | B63: 0.4307809 | C63: 0.2154101 | D63: 0.8218111 | E63: 1 | F63: 0.1494776 | G63: 0 | H63: 0.5445309 | I63: 0.5361162 | J63: 0.5213498 | K63: 0.381105
A64: 60 | B64: 0.4421605 | C64: 0.3279329 | D64: 0.8924904 | E64: 1 | F64: 0.0454889 | G64: 0.0816233 | H64: 0.7607813 | I64: 0.0330703 | J64: 0 | K64: 0.6965214
A65: 61 | B65: 0.2997245 | C65: 0.2088671 | D65: 0.8357402 | E65: 0.8794155 | F65: 0.883199 | G65: 1 | H65: 0.6064535 | I65: 0.7261209 | J65: 0.5000309 | K65: 0.1030709
A66: 62 | B66: 0.2089075 | C66: 0.5229001 | D66: 0.7678344 | E66: 0.7700258 | F66: 0.6827227 | G66: 0.9583973 | H66: 0.3237112 | I66: 0.3014179 | J66: 0.7048306 | K66: 0.4496158
A67: 63 | B67: 0.1533376 | C67: 0.1449707 | D67: 0.4747069 | E67: 0.4860488 | F67: 0.4935265 | G67: 0.4804656 | H67: 0.8076866 | I67: 0.3301335 | J67: 0.5360938 | K67: 0.6454631
A68: 64 | B68: 0.179364 | C68: 0 | D68: 0.4387744 | E68: 0.3217525 | F68: 0.5651577 | G68: 0.6011804 | H68: 0.3816091 | I68: 0.5170593 | J68: 0.3669965 | K68: 0.3528047
A69: 65 | B69: 0.1416593 | C69: 0.1755914 | D69: 0.6998959 | E69: 0.6175153 | F69: 0.441486 | G69: 0.4275846 | H69: 0.4255897 | I69: 0.8645203 | J69: 0.3525785 | K69: 0.3999591
A70: 66 | B70: 0.3649675 | C70: 0.3846346 | D70: 0.756127 | E70: 0.6654845 | F70: 0.7029301 | G70: 0.9624084 | H70: 0.7717119 | I70: 0.3532838 | J70: 0.6914873 | K70: 0.9897082
A71: 67 | B71: 0.0701038 | C71: 0 | D71: 0.6293401 | E71: 0.3554371 | F71: 0.3741969 | G71: 0.6687167 | H71: 0.4861908 | I71: 0.7705476 | J71: 0.8167358 | K71: 0.2370299
A72: 68 | B72: 0.475112 | C72: 0.3128794 | D72: 0.6989787 | E72: 1 | F72: 0.4644609 | G72: 0.5435658 | H72: 0.6773661 | I72: 0.6748037 | J72: 0.5341715 | K72: 0.8568563
A73: 69 | B73: 0.0233027 | C73: 0 | D73: 0.3041101 | E73: 0.2280815 | F73: 0.580453 | G73: 0.5174322 | H73: 0.1531036 | I73: 1 | J73: 0.304165 | K73: 0.2602705
A74: 70 | B74: 0.1735179 | C74: 0.1037615 | D74: 0.7552382 | E74: 0.5179519 | F74: 0.7514798 | G74: 1 | H74: 0.4514478 | I74: 0.4660454 | J74: 0.8145556 | K74: 0.5595031
A75: 71 | B75: 0.5384685 | C75: 0.6324252 | D75: 0.7975758 | E75: 1 | F75: 0.8579625 | G75: 1 | H75: 0.5920497 | I75: 0.0629802 | J75: 0.5444419 | K75: 0.2432425
A76: 72 | B76: 0.1536885 | C76: 0.0088472 | D76: 0.5560517 | E76: 0.8366047 | F76: 0.6972946 | G76: 0.9954106 | H76: 0.8208078 | I76: 0.7513215 | J76: 0.9702686 | K76: 0.152263
A77: 73 | B77: 0.6409475 | C77: 1 | D77: 1 | E77: 1 | F77: 0.5151023 | G77: 0.4549187 | H77: 0.5360106 | I77: 0.5254798 | J77: 0.2498633 | K77: 0.3856199
A78: 74 | B78: 0.3609848 | C78: 0.6703852 | D78: 0.7889439 | E78: 0.964638 | F78: 0.3907603 | G78: 0.3892689 | H78: 0.0933671 | I78: 0.6994787 | J78: 0.3036113 | K78: 0.1438293
A79: 75 | B79: 0.3408212 | C79: 0.4382811 | D79: 0.6608509 | E79: 0.7295527 | F79: 0.2964732 | G79: 0.0478631 | H79: 0.3659945 | I79: 0.3855878 | J79: 0.7705927 | K79: 0.2851649
A80: 76 | B80: 0.3414061 | C80: 1 | D80: 0.6796502 | E80: 0.9202769 | F80: 0.1789523 | G80: 0 | H80: 0.3724975 | I80: 0.289833 | J80: 0.5141878 | K80: 0.6020871
A81: 77 | B81: 0.3792457 | C81: 0.4665691 | D81: 0.6886228 | E81: 0.4311945 | F81: 0.8211812 | G81: 0.7087581 | H81: 0.5023921 | I81: 0.4524405 | J81: 0.5248054 | K81: 0.2205546
A82: 78 | B82: 0.2981618 | C82: 0.2962118 | D82: 0.7382386 | E82: 0.7163922 | F82: 0.3933541 | G82: 0.3582865 | H82: 0.7829183 | I82: 0 | J82: 0.1306426 | K82: 0.2531233
A83: 79 | B83: 0.4824125 | C83: 0.5380578 | D83: 0.9523466 | E83: 0.9735192 | F83: 0.3173527 | G83: 0 | H83: 0.4967823 | I83: 0.1884028 | J83: 0.6301717 | K83: 0.5228078
A84: 80 | B84: 0.2997053 | C84: 0.2166491 | D84: 0.5850093 | E84: 0.176676 | F84: 0.3771335 | G84: 0 | H84: 0.6689174 | I84: 0 | J84: 0.3527446 | K84: 0.5449907
A85: 81 | B85: 0.1307118 | C85: 0 | D85: 0.6253759 | E85: 0.1199998 | F85: 0.5433828 | G85: 0.2474913 | H85: 0.1669011 | I85: 0 | J85: 0.6241628 | K85: 0.3262129
A86: 82 | B86: 0.3981176 | C86: 0.5440797 | D86: 0.7683756 | E86: 1 | F86: 0.3451089 | G86: 0.5313914 | H86: 0.4437681 | I86: 0.9120761 | J86: 0.5288042 | K86: 0.7529482
A87: 83 | B87: 0.376938 | C87: 0.2410823 | D87: 0.7287589 | E87: 0.7481694 | F87: 0.3352113 | G87: 0.4017381 | H87: 0.3317354 | I87: 0.2081775 | J87: 0.0074758 | K87: 0.5761075
A88: 84 | B88: 0 | C88: 0 | D88: 0.4424159 | E88: 0.2543178 | F88: 0.3219101 | G88: 0 | H88: 0.2936448 | I88: 0 | J88: 1 | K88: 0.3731997
A89: 85 | B89: 0.2452934 | C89: 0.5184894 | D89: 0.7720467 | E89: 0.7479903 | F89: 0.6012123 | G89: 0.3625262 | H89: 0.3633544 | I89: 0.3551321 | J89: 0.9923482 | K89: 0.6874958
A90: 86 | B90: 0.5472432 | C90: 0.805883 | D90: 0.939658 | E90: 1 | F90: 0.7669926 | G90: 0.8464333 | H90: 0.8673568 | I90: 0.3316862 | J90: 0.8430898 | K90: 0.120079
A91: 87 | B91: 0.518177 | C91: 0.5267632 | D91: 0.8802938 | E91: 1 | F91: 0.6348247 | G91: 1 | H91: 1 | I91: 0.0498828 | J91: 0.3470441 | K91: 0.2527719
A92: 88 | B92: 0.2931388 | C92: 0.7898685 | D92: 0.8558995 | E92: 1 | F92: 0.4980835 | G92: 0.4822368 | H92: 0.4196427 | I92: 0.4227958 | J92: 0.7541172 | K92: 0.3392072
A93: 89 | B93: 0.6677362 | C93: 0.8249587 | D93: 0.9964486 | E93: 1 | F93: 0.5602518 | G93: 0.5882252 | H93: 0.4691499 | I93: 0.7718758 | J93: 0.6896152 | K93: 0.7239235
A94: 90 | B94: 0.2451339 | C94: 0.7591107 | D94: 0.7364812 | E94: 0.530044 | F94: 0.4273341 | G94: 0.0479527 | H94: 0.5533906 | I94: 0.7293065 | J94: 0.6872024 | K94: 0.780265
A95: 91 | B95: 0 | C95: 0 | D95: 0.5374506 | E95: 0.2986902 | F95: 0.4224758 | G95: 0.9065694 | H95: 0.2074324 | I95: 0.6531695 | J95: 0.5531003 | K95: 0.8701149
A96: 92 | B96: 0.3740422 | C96: 0.0154363 | D96: 0.5189959 | E96: 0.5899022 | F96: 0.574054 | G96: 0.4451615 | H96: 0.5719935 | I96: 0.2616265 | J96: 0.6693226 | K96: 0.406807
A97: 93 | B97: 0.376709 | C97: 0.1480384 | D97: 0.6800749 | E97: 0.775696 | F97: 0.3078552 | G97: 0.0549512 | H97: 0.5882493 | I97: 0.0950282 | J97: 0.3384351 | K97: 0.2630315
A98: 94 | B98: 0.4750057 | C98: 0.7447739 | D98: 0.8978087 | E98: 1 | F98: 0.5705436 | G98: 0.6244614 | H98: 0.4030823 | I98: 0.027813 | J98: 0.539601 | K98: 0.8459721
A99: 95 | B99: 0.5165972 | C99: 0.5047868 | D99: 0.7959904 | E99: 0.5815012 | F99: 0.5446992 | G99: 0.2285262 | H99: 0.2998431 | I99: 0.5364003 | J99: 0.2480521 | K99: 1
A100: 96 | B100: 0.1649284 | C100: 0.0710263 | D100: 0.7315571 | E100: 0.5287041 | F100: 0.4915707 | G100: 0.918489 | H100: 0.6113266 | I100: 0.2798361 | J100: 0.6858785 | K100: 0.7585394
A101: 97 | B101: 0.233111 | C101: 0.1658202 | D101: 0.6684365 | E101: 0.5918851 | F101: 0.5524157 | G101: 0.9228181 | H101: 0.3143398 | I101: 0.5580915 | J101: 0.1804926 | K101: 0.0178622
A102: 98 | B102: 0.5994327 | C102: 0.6518295 | D102: 0.8437781 | E102: 0.9020736 | F102: 0.2631898 | G102: 0 | H102: 0.5367216 | I102: 0.8368613 | J102: 0.2430363 | K102: 0.4285542
A103: 99 | B103: 0.3716097 | C103: 0.4518837 | D103: 0.6839095 | E103: 0.8753515 | F103: 0.2981895 | G103: 0.269835 | H103: 0.6847849 | I103: 0.8521898 | J103: 0.7785379 | K103: 0.3670735
A104: 100 | B104: 0.414436 | C104: 0.2953423 | D104: 0.757671 | E104: 0.6002955 | F104: 0.577346 | G104: 0.2979041 | H104: 0.5005134 | I104: 0.6779335 | J104: 0.5645493 | K104: 0.0614601

Sheet Betti_Verma_weights
A1: Work flow to obtain Betti-Verma weights (and then use them to obtain scores and statistics)
C2: Continuous indicators (normalized to [0, 1]; higher values = less desirable)
A3: 1. Step: | B3: Correlation table: | C3: x1 | D3: x2 | E3: x3 | F3: x4 | G3: x5 | H3: x6 | I3: x7 | J3: x8 | K3: x9 | L3: x10
A4: Verify all indicators have the same substantive direction; else reverse the incorrectly coded ones [= replace x by 1 -x] Calculate the correlation table (use function CORREL) | B4: x1 | C4: =CORREL(INDIRECT($B4&"_"),(INDIRECT(C$3&"_"))) -> 1 | D4: =CORREL(INDIRECT($B4&"_"),(INDIRECT(D$3&"_"))) -> 0.7867224513 | E4: 0.7988917415 | F4: 0.7764189932 | G4: 0.003950317378 | H4: -0.06727548781 | I4: 0.01448721594 | J4: 0.07751921112 | K4: -0.1009583302 | L4: -0.009463199427
B5: x2 | C5: =CORREL(INDIRECT($B5&"_"),(INDIRECT(C$3&"_"))) -> 0.7867224513 | D5: 1 | E5: 0.7225749116 | F5: 0.709558778 | G5: 0.0343784742 | H5: -0.03871669808 | I5: -0.01190870726 | J5: 0.0761416071 | K5: -0.1199038431 | L5: 0.018594707
B6: x3 | C6: 0.7988917415 | D6: 0.7225749116 | E6: 1 | F6: 0.8145695992 | G6: -0.1098356489 | H6: 0.01019221957 | I6: 0.006363463447 | J6: 0.06505020642 | K6: -0.0004778572443 | L6: -0.1132698422
B7: x4 | C7: 0.7764189932 | D7: 0.709558778 | E7: 0.8145695992 | F7: 1 | G7: -0.1378004285 | H7: 0.0156782208 | I7: 0.04343157527 | J7: 0.07156995875 | K7: -0.01968544678 | L7: -0.1247770596
B8: x5 | C8: 0.003950317378 | D8: 0.0343784742 | E8: -0.1098356489 | F8: -0.1378004285 | G8: 1 | H8: 0.7854411503 | I8: 0.0997376216 | J8: -0.009612665439 | K8: 0.10903368 | L8: -0.09587775755
B9: x6 | C9: -0.06727548781 | D9: -0.03871669808 | E9: 0.01019221957 | F9: 0.0156782208 | G9: 0.7854411503 | H9: 1 | I9: 0.09732561807 | J9: -0.01491457315 | K9: 0.1022576306 | L9: -0.1017615959
B10: x7 | C10: 0.01448721594 | D10: -0.01190870726 | E10: 0.006363463447 | F10: 0.04343157527 | G10: 0.0997376216 | H10: 0.09732561807 | I10: 1 | J10: -0.0007479750155 | K10: 0.09175495138 | L10: -0.08271927409
B11: x8 | C11: 0.07751921112 | D11: 0.0761416071 | E11: 0.06505020642 | F11: 0.07156995875 | G11: -0.009612665439 | H11: -0.01491457315 | I11: -0.0007479750155 | J11: 1 | K11: 0.08050851001 | L11: -0.09452479234
B12: x9 | C12: -0.1009583302 | D12: -0.1199038431 | E12: -0.0004778572443 | F12: -0.01968544678 | G12: 0.10903368 | H12: 0.1022576306 | I12: 0.09175495138 | J12: 0.08050851001 | K12: 1 | L12: -0.09555572487
B13: x10 | C13: -0.009463199427 | D13: 0.018594707 | E13: -0.1132698422 | F13: -0.1247770596 | G13: -0.09587775755 | H13: -0.1017615959 | I13: -0.08271927409 | J13: -0.09452479234 | K13: -0.09555572487 | L13: 1
B15: Statistics:
B16: Mean | C16: =AVERAGE(INDIRECT(C$3&"_")) -> 0.307356805 | D16: =AVERAGE(INDIRECT(D$3&"_")) -> 0.34529384 | E16: 0.695754 | F16: 0.659874974 | G16: 0.500103018 | H16: 0.508182163 | I16: 0.499537427 | J16: 0.4992101 | K16: 0.50234909 | L16: 0.493649802
B17: SD | C17: =_xlfn.STDEV.S(INDIRECT(C$3&"_")) -> 0.1860677825 | D17: =_xlfn.STDEV.S(INDIRECT(D$3&"_")) -> 0.3116665885 | E17: 0.1919044173 | F17: 0.319608236 | G17: 0.1997369635 | H17: 0.3355611774 | I17: 0.1987999038 | J17: 0.3347192413 | K17: 0.2666228211 | L17: 0.2776320695
A18: Calculate the needed statistics: | B18: C.o.V. | C18: =C17/C16 -> 0.6053803902 | D18: =D17/D16 -> 0.9026126515 | E18: 0.2758222264 | F18: 0.4843466545 | G18: 0.3993916378 | H18: =H17/H16 -> 0.6603167168 | I18: =I17/I16 -> 0.3979679862 | J18: =J17/J16 -> 0.670497735 | K18: =K17/K16 -> 0.5307520734 | L18: =L17/L16 -> 0.5624069296 | M18: C.o.V. =
M19: Coefficient of variation =
M20: Standard deviation / Mean
B22: BETTI-VERMA FORMULA ELEMENTS, RAW (= not yet normalized)
A23: Step 2: | B23: Betti-Verma first weight:
A24: Determine the values of the first Betti-Verma double-weighting component 2.a.: Decide, on substantive grounds, on the analytic option: Information value, user-defined, equal 2.b.: Set or calculate the value for each indicator. No normalization of weight required at this point. | B24: Three analyic choices:
B25: Information value (here: = coefficient of variation) | C25: =C18 -> 0.6053803902 | D25: =D18 -> 0.9026126515 | E25: 0.2758222264 | F25: 0.4843466545 | G25: 0.3993916378 | H25: 0.6603167168 | I25: 0.3979679862 | J25: 0.670497735 | K25: 0.5307520734 | L25: 0.5624069296 | M25: Betti-Verma default option
B27: User-defined | C27: 1 | D27: 2 | E27: 2 | F27: 5 | G27: 1 | H27: 3 | I27: 1 | J27: 1 | K27: 3 | L27: 5 | M27: Generally not recommended. Second-guesses the data without reference to the correlation pattern. May be permissible if there is a consensual and compelling hierarchy of indicators , but for such situations other approaches may be more suitable (e.g., lexicographic ranking). For the calculation of simple weighted scores (not BV), we name this range "UserDef_first".
B29: Equal | C29: 1 | D29: 1 | E29: 1 | F29: 1 | G29: 1 | H29: 1 | I29: 1 | J29: 1 | K29: 1 | L29: 1 | M29: Recommended for simplicity and for avoiding precarious assumption about the greater or lesser importance of some indicators
A32: Step 3: Calculate the second BV weighting component | B32: Betti-Verma's second weight: | C32: =1 /((1 + SUM(IF(C$4:C$13<0, C$4:C$13))) * SUM(IF(C$4:C$13>0, C$4:C$13))) -> 0.3516773597 | D32: =1 /((1 + SUM(IF(D$4:D$13<0, D$4:D$13))) * SUM(IF(D$4:D$13>0, D$4:D$13))) -> 0.3600951276 | E32: =1 /((1 + SUM(IF(E$4:E$13<0, E$4:E$13))) * SUM(IF(E$4:E$13>0, E$4:E$13))) -> 0.3768587235 | F32: =1 /((1 + SUM(IF(F$4:F$13<0, F$4:F$13))) * SUM(IF(F$4:F$13>0, F$4:F$13))) -> 0.4060552772 | G32: =1 /((1 + SUM(IF(G$4:G$13<0, G$4:G$13))) * SUM(IF(G$4:G$13>0, G$4:G$13))) -> 0.7605736466 | H32: =1 /((1 + SUM(IF(H$4:H$13<0, H$4:H$13))) * SUM(IF(H$4:H$13>0, H$4:H$13))) -> 0.6397411583 | I32: =1 /((1 + SUM(IF(I$4:I$13<0, I$4:I$13))) * SUM(IF(I$4:I$13>0, I$4:I$13))) -> 0.8169619625 | J32: =1 /((1 + SUM(IF(J$4:J$13<0, J$4:J$13))) * SUM(IF(J$4:J$13>0, J$4:J$13))) -> 0.8287964299 | K32: =1 /((1 + SUM(IF(K$4:K$13<0, K$4:K$13))) * SUM(IF(K$4:K$13>0, K$4:K$13))) -> 1.089471491 | L32: =1 /((1 + SUM(IF(L$4:L$13<0, L$4:L$13))) * SUM(IF(L$4:L$13>0, L$4:L$13))) -> 3.480737882 | M32: The formula implements this algebra:
B33: Formula (enter as array formula!): | C33: {=1 /((1 + SUM(IF(R4C:R13C<0, R4C:R13C))) * SUM(IF(R4C:R13C>0, R4C:R13C)))} | R33: Choice of rhoH = 0
A35: Step 4: Multiply: First x second weight x (second w. is > 0) | B35: Combine first and second weights: | C35: Exclude indicators whose sum of correlation coefficients with the other indicators is negative. Most likely, they relate to a different concept.
B36: Three analyic choices from first weight:
A37: The assigment of zero weights to indicators with negative second weights is a safeguard. | B37: Information value | C37: =C25*C$32*(SUM(C$4:C$13) - 1 > 0) -> 0.2128985773 | D37: 0.3250264179 | E37: 0.1039460121 | F37: 0.196671515 | G37: 0.3037667544 | H37: 0.4224317812 | I37: 0.325124707 | J37: 0.555706129 | K37: 0.578239253 | L37: 0 | M37: Inclusion is modeled through the indicator (red) in this formula:
A38: It will rarely come into play (here, it does for x10). | M38: =R[-12]C*R32C*(sum(R4C:R13C) - 1 > 0)
B39: User-defined | C39: =C27*C$32*(SUM(C$4:C$13) - 1 > 0) -> 0.3516773597 | D39: 0.7201902551 | E39: 0.753717447 | F39: 2.030276386 | G39: 0.7605736466 | H39: 1.919223475 | I39: 0.8169619625 | J39: 0.8287964299 | K39: 3.268414474 | L39: 0
M40: Note mixed-type vs. absolute cell references in formulas!
B41: Equal | C41: =C29*C$32*(SUM(C$4:C$13) - 1 > 0) -> 0.3516773597 | D41: 0.3600951276 | E41: 0.3768587235 | F41: 0.4060552772 | G41: 0.7605736466 | H41: 0.6397411583 | I41: 0.8169619625 | J41: 0.8287964299 | K41: 1.089471491 | L41: 0
B43: BETTI-VERMA FORMULA ELEMENTS, NORMALIZED (= summing to 1)
A44: Step 5: Normalize the weights such that they sum to 1 over all indicators | B44: Three analyic choices from first weight:
B45: Information value | C45: =C37 / SUM($C37:$L37) -> 0.07040736571 | D45: =D37 / SUM($C37:$L37) -> 0.1074889939 | E45: =E37 / SUM($C37:$L37) -> 0.03437582808 | F45: =F37 / SUM($C37:$L37) -> 0.06504093856 | G45: =G37 / SUM($C37:$L37) -> 0.1004582428 | H45: =H37 / SUM($C37:$L37) -> 0.1397017739 | I45: 0.1075214989 | J45: 0.1837767314 | K45: 0.1912286267 | L45: =L37 / SUM($C37:$L37) -> 0 | M45: For the calculation of the BV scores, we name this range "InfoValue_Cont"
B47: User-defined | C47: =C39 / SUM($C39:$L39) -> 0.03071463206 | D47: =D39 / SUM($C39:$L39) -> 0.06289963823 | E47: =E39 / SUM($C39:$L39) -> 0.06582782037 | F47: =F39 / SUM($C39:$L39) -> 0.1773193254 | G47: =G39 / SUM($C39:$L39) -> 0.06642662391 | H47: 0.1676202384 | I47: 0.07135144016 | J47: 0.07238503331 | K47: 0.2854552482 | L47: =L39 / SUM($C39:$L39) -> 0 | M47: For the calculation of the BV scores, we name this range "UserDef_Cont"
B49: Equal | C49: =C41 / SUM($C41:$L41) -> 0.06246233036 | D49: =D41 / SUM($C41:$L41) -> 0.06395743199 | E49: =E41 / SUM($C41:$L41) -> 0.06693485786 | F49: =F41 / SUM($C41:$L41) -> 0.07212053367 | G49: =G41 / SUM($C41:$L41) -> 0.1350874632 | H49: 0.1136260907 | I49: 0.1451027386 | J49: 0.1472046891 | K49: 0.1935038646 | L49: =L41 / SUM($C41:$L41) -> 0 | M49: For the calculation of the BV scores, we name this range "Equal_Cont"
A51: Step 6: Use the weights to calculate the Betti-Verma score for every observed unit (e.g., household), as in sheet "Betti_Verma_scores" | B51: Review weights critically on substantive grounds: 1. Indicators with very high weights may not fit (very low pos. or some neg. correl. with all others) 2. Indicators with very low weights: Check if they are very highly correl. with others --> high redundancy. If corr. coef. = +1, one or the other is implied (e.g. "toilet use" implies "toilet access"). Eliminate indicators with excessive weights and implied ones from index; recalculate.
A53: Step 7: Calculate the frequency table and distribution statistics (mean, st.dev.) of the BV scores, as in sheet "Indices_compared". | B53: Typically, one decides on one option only (information value, or user-defined, or equal). If for any reason you work with several BV options or non-BV indices, calculate (Pearson-moment) correlations and inspect scatterplots, compare weights and aggregation methods, even check the association of their scores with external variables (e.g., groups of affected people, gender of household head, etc.) before settling on the best candidate.
A55: Step 8: Review the weights and the score statistics for plausibility. Use the final index in the further analysis of the survey / assessment, etc. data.

Sheet Betti_Verma_scores
A1: Calculation of five variants of the same index, incl. three Betti-Verma options
L2: Additive aggregation | N2: Betti-Verma, by type of first weight
A3: Static copy of the data (to keep the Betti-Verma stuff out of the sheet "Data", not needed in "real life"): | L3: Unweighted (arithmetic mean) | M3: Weighted mean (user defined weights) | N3: Information value | O3: User-defined | P3: Equal
A4: id | B4: x1 | C4: x2 | D4: x3 | E4: x4 | F4: x5 | G4: x6 | H4: x7 | I4: x8 | J4: x9 | K4: x10 | L4: Index1a | M4: Index1b | N4: Index2a | O4: Index2b | P4: Index2c
A5: 1 | B5: 0 | C5: 0.0968057 | D5: 0.3687922 | E5: 0.3125061 | F5: 0.1741119 | G5: 0 | H5: 0.6878377 | I5: 0.1958989 | J5: 0.0556548 | K5: 0.7212605 | L5: =AVERAGE($B5:$K5) -> 0.26128678 | M5: =SUMPRODUCT($B5:$K5, UserDef_first) / SUM(UserDef_first) -> 0.3052017375 | N5: =SUMPRODUCT($B5:$K5, InfoValue_Cont) -> 0.1815015412 | O5: =SUMPRODUCT($B5:$K5, UserDef_Cont) -> 0.1764901804 | P5: =SUMPRODUCT($B5:$K5, Equal_Cont) -> 0.2163487286
A6: 2 | B6: 0.3858637 | C6: 0.3118555 | D6: 0.7619708 | E6: 0.7799424 | F6: 0.8320824 | G6: 0.8805346 | H6: 0.6723175 | I6: 1 | J6: 1 | K6: 0.2731308 | L6: =AVERAGE($B6:$K6) -> 0.68976977 | M6: 0.66437025 | N6: 0.7915059684 | O6: 0.8286039444 | P6: 0.8020189612
A7: 3 | B7: 0.4583524 | C7: 0.5856686 | D7: 0.7078855 | E7: 1 | F7: 0.7745097 | G7: 0.9074144 | H7: 0.6061915 | I7: 0.8334434 | J7: 0.4730663 | K7: 0.6585976 | L7: 0.70051294 | M7: 0.7372514708 | N7: 0.6979826288 | O7: 0.7170041588 | P7: 0.6955098497
A8: 4 | B8: 0.121715 | C8: 0 | D8: 0.4294099 | E8: 0.0251318 | F8: 0.4240513 | G8: 0.0790777 | H8: 0.4566294 | I8: 0.9116816 | J8: 0.3143635 | K8: 0.2963912 | L8: 0.30584514 | M8: 0.2317014875 | N8: 0.3553709352 | O8: 0.2661952014 | P8: 0.3657194513
A9: 5 | B9: 0.3588835 | C9: 0.259292 | D9: 0.6504753 | E9: 0.6147868 | F9: 0.5497213 | G9: 0.5838792 | H9: 0.2671064 | I9: 0.8057551 | J9: 0.61744 | K9: 0.4765985 | L9: 0.51839381 | M9: 0.535911875 | N9: 0.5471499338 | O9: 0.5671859247 | P9: 0.5443287661
A10: 6 | B10: 0.1229391 | C10: 0 | D10: 0.2809352 | E10: 0.0464795 | F10: 0.3788213 | G10: 0.1047234 | H10: 0.5335307 | I10: 0.5587463 | J10: 0.7845391 | K10: 0.779965 | L10: 0.35906796 | M10: 0.3731632417 | N10: 0.3840989595 | O10: 0.3756925329 | P10: 0.4043870545
A11: 7 | B11: 0.5208004 | C11: 0.5733281 | D11: 0.8956906 | E11: 1 | F11: 0.6445332 | G11: 0.9093123 | H11: 0.2849174 | I11: 0.0533199 | J11: 0.4527252 | K11: 0.593459 | L11: 0.59280861 | M11: 0.687292325 | N11: 0.5129146247 | O11: 0.6369939309 | P11: 0.5284577232
A12: 8 | B12: 0.3042715 | C12: 0.4657593 | D12: 0.8081882 | E12: 0.6814616 | F12: 0.4735529 | G12: 0.6908637 | H12: 0.6439291 | I12: 1 | J12: 1 | K12: 0.4845174 | L12: 0.65525437 | M12: 0.6613389417 | N12: 0.7319207508 | O12: 0.7637240661 | P12: 0.7286532432
A13: 9 | B13: 0.4828641 | C13: 0.7545037 | D13: 0.9375651 | E13: 1 | F13: 0.4135486 | G13: 0.5652282 | H13: 0.1375477 | I13: 0 | J13: 0.7248528 | K13: 0.1401716 | L13: 0.51562818 | M13: 0.5828832917 | N13: 0.4862782364 | O13: 0.6402677807 | P13: 0.4936035244
A14: 10 | B14: 0.6053243 | C14: 0.4456611 | D14: 0.8799941 | E14: 0.9789482 | F14: 0.2311956 | G14: 0.0177647 | H14: 0.537074 | I14: 0.9754481 | J14: 0.2729346 | K14: 0.5002393 | L14: 0.5444584 | M14: 0.5528494917 | N14: 0.4993570258 | O14: 0.48331349 | P14: 0.5034033554
A15: 11 | B15: 0.012052 | C15: 0 | D15: 0.6653038 | E15: 0.5139226 | F15: 0.6041155 | G15: 0.9496343 | H15: 0.495636 | I15: 0.1392026 | J15: 0.5267801 | K15: 0.127625 | L15: 0.40342719 | M15: 0.4257747875 | N15: 0.4301080643 | O15: 0.5304140328 | P15: 0.4662042485
A16: 12 | B16: 0.1111596 | C16: 0.3123208 | D16: 0.5186059 | E16: 0.5093064 | F16: 0.5569324 | G16: 0.359862 | H16: 0.6048931 | I16: 1 | J16: 0.624715 | K16: 0.6274248 | L16: 0.522522 | M16: 0.5238427292 | N16: 0.5668517225 | O16: 0.5386961507 | P16: 0.5703481841
A17: 13 | B17: 0.1168118 | C17: 0.2536306 | D17: 0.595008 | E17: 0.5099083 | F17: 0.6336834 | G17: 0.9068578 | H17: 0.4104549 | I17: 0.0777218 | J17: 0.2003034 | K17: 0.4184013 | L17: 0.41227813 | M17: 0.4541241958 | N17: 0.376174009 | O17: 0.4353170495 | P17: 0.3985235487
A18: 14 | B18: 0.577566 | C18: 0.990168 | D18: 0.9285766 | E18: 0.9626926 | F18: 0.6742935 | G18: 0.6597928 | H18: 0.276921 | I18: 0.5202819 | J18: 0 | K18: 0.8553252 | L18: 0.64456176 | M18: 0.7065007917 | N18: 0.5269353152 | O18: 0.5246561141 | P18: 0.5138169733
A19: 15 | B19: 0.2266963 | C19: 0.2427944 | D19: 0.748822 | E19: 0.4134571 | F19: 0.5375689 | G19: 0.8008693 | H19: 0.3304468 | I19: 0.91888 | J19: 0.4413773 | K19: 0.1638093 | L19: 0.48247214 | M19: 0.442079025 | N19: 0.5493807914 | O19: 0.5308770988 | P19: 0.5418683867
A20: 16 | B20: 0.1623919 | C20: 0 | D20: 0.5993113 | E20: 0.232293 | F20: 0.7688294 | G20: 1 | H20: 0.2406394 | I20: 1 | J20: 0.40823 | K20: 0.6971499 | L20: 0.51088449 | M20: 0.5100994917 | N20: 0.55179689 | O20: 0.5104065789 | P20: 0.5456127999
A21: 17 | B21: 0.4185179 | C21: 0 | D21: 0.829589 | E21: 0.9049548 | F21: 0.1610498 | G21: 0.0139629 | H21: 0.2331759 | I21: 0.8416876 | J21: 0.6132043 | K21: 0.3630371 | L21: 0.43791793 | M21: 0.4806279292 | N21: 0.4319893175 | O21: 0.4935744996 | P21: 0.4466704319
A22: 18 | B22: 0.0767288 | C22: 0 | D22: 0.3289277 | E22: 0 | F22: 0.5070903 | G22: 0.2190742 | H22: 0.6064554 | I22: 0.5470896 | J22: 0.9637645 | K22: 0.8299712 | L22: 0.40791017 | M22: 0.4205663167 | N22: 0.4483045835 | O22: 0.4523990563 | P22: 0.4752281248
A23: 19 | B23: 0.2200056 | C23: 0.1472971 | D23: 0.520771 | E23: 0.2939337 | F23: 0.4132566 | G23: 0.0834329 | H23: 0.1061209 | I23: 0.3033052 | J23: 0.2971486 | K23: 0.3668494 | L23: 0.2752121 | M23: 0.2843535208 | N23: 0.2454872811 | O23: 0.2582092173 | P23: 0.2620709182
A24: 20 | B24: 0.3125771 | C24: 0.228437 | D24: 0.7316207 | E24: 0.5415294 | F24: 0.7062327 | G24: 0.7176274 | H24: 0.5877628 | I24: 0.1262541 | J24: 0.4499909 | K24: 0 | L24: 0.44020321 | M24: 0.4109768333 | N24: 0.4505854031 | O24: 0.5148843425 | P24: 0.4900514004
A25: 21 | B25: 0.3000937 | C25: 0.2684852 | D25: 0.9026445 | E25: 0.594659 | F25: 0.4265278 | G25: 0.6119498 | H25: 0.9811963 | I25: 0.2425937 | J25: 1 | K25: 0.5116683 | L25: 0.58398183 | M25: 0.6108398667 | N25: 0.5893444493 | O25: 0.6949016857 | P25: 0.6379627684
A26: 22 | B26: 0 | C26: 0 | D26: 0.6018088 | E26: 0.3013783 | F26: 0.5772533 | G26: 1 | H26: 0.6388542 | I26: 1 | J26: 0.5807465 | K26: 0.1725565 | L26: 0.48725976 | M26: 0.438818275 | N26: 0.6015038777 | O26: 0.5827665215 | P26: 0.6059042001
A27: 23 | B27: 0.4021602 | C27: 0.8825381 | D27: 0.7807156 | E27: 0.9140548 | F27: 0.5745323 | G27: 0.5569978 | H27: 0.6817281 | I27: 0.9808288 | J27: 0.0996497 | K27: 0.2696031 | L27: 0.61428085 | M27: 0.5772495333 | N27: 0.6176067995 | O27: 0.5609493985 | P27: 0.6032313498
A28: 24 | B28: 0.25985 | C28: 0.0913804 | D28: 0.799543 | E28: 0.8774245 | F28: 0.3424573 | G28: 0.3223761 | H28: 0.5799668 | I28: 0.7274808 | J28: 0.4061278 | K28: 0.325681 | L28: 0.47322877 | M28: 0.4955267042 | N28: 0.4658265833 | O28: 0.5087020259 | P28: 0.4915955912
A29: 25 | B29: 0.1818306 | C29: 0 | D29: 0.5069004 | E29: 0.690071 | F29: 0.6324694 | G29: 0.7464464 | H29: 0.4978698 | I29: 0.5154009 | J29: 1 | K29: 0.4943389 | L29: 0.52653274 | M29: 0.5834483417 | N29: 0.5824058775 | O29: 0.6867345499 | P29: 0.6069251964
A30: 26 | B30: 0.5625388 | C30: 0.8092554 | D30: 0.8270568 | E30: 0.7997136 | F30: 0.4381184 | G30: 0.1902792 | H30: 0.5961446 | I30: 1 | J30: 0 | K30: 0.6412385 | L30: 0.58643453 | M30: 0.5685426792 | N30: 0.525507848 | O30: 0.4403462468 | P30: 0.5144419705
A31: 27 | B31: 0.7037758 | C31: 1 | D31: 0.9935858 | E31: 1 | F31: 0.8210068 | G31: 0.834695 | H31: 0.418374 | I31: 0.3868173 | J31: 0.2932758 | K31: 0.9349607 | L31: 0.73864912 | M31: 0.8073275583 | N31: 0.627476487 | O31: 0.6632577376 | P31: 0.6266923563
A32: 28 | B32: 0.8005483 | C32: 1 | D32: 1 | E32: 1 | F32: 0.5947857 | G32: 0.5991236 | H32: 0.4457135 | I32: 1 | J32: 0.6751013 | K32: 0.4742281 | L32: 0.75895005 | M32: 0.7514526125 | N32: 0.7675192229 | O32: 0.7674687197 | P32: 0.7439547489
A33: 29 | B33: 0.1891088 | C33: 0.0843515 | D33: 0.425018 | E33: 0.5954822 | F33: 0.7833694 | G33: 0.7327172 | H33: 0.9243801 | I33: 0.5689931 | J33: 0.433828 | K33: 0 | L33: 0.47372483 | M33: 0.4150682083 | N33: 0.5436991419 | O33: 0.5505183281 | P33: 0.5795172021
A34: 30 | B34: 0.3701656 | C34: 0.4828261 | D34: 1 | E34: 1 | F34: 0.5440514 | G34: 0.7001439 | H34: 0.3142087 | I34: 0.9459723 | J34: 0.412677 | K34: 0.1672727 | L34: 0.59373177 | M34: 0.5964531833 | N34: 0.6163909793 | O34: 0.6470783133 | P34: 0.6108049482
A35: 31 | B35: 0.429385 | C35: 0.3769095 | D35: 0.8778751 | E35: 1 | F35: 0.2470365 | G35: 0.5558574 | H35: 0.310756 | I35: 0.1550062 | J35: 0.2695584 | K35: 0.3711611 | L35: 0.45935452 | M35: 0.5409919083 | N35: 0.3818819956 | O35: 0.4919264309 | P35: 0.3984087458
A36: 32 | B36: 0.4654393 | C36: 0.8559191 | D36: 0.8593451 | E36: 1 | F36: 0.5855711 | G36: 0.7011928 | H36: 0.5481676 | I36: 0.4667218 | J36: 0.4071583 | K36: 1 | L36: 0.68895151 | M36: 0.7842283958 | N36: 0.5987099291 | O36: 0.6475742487 | P36: 0.5992635598
A37: 33 | B37: 0 | C37: 0 | D37: 0.2329369 | E37: 0.1940093 | F37: 0.4387861 | G37: 0.0951644 | H37: 0.5830927 | I37: 0.0645121 | J37: 0.8706884 | K37: 0.6144819 | L37: 0.30936718 | M37: =SUMPRODUCT($B37:$K37, UserDef_first) / SUM(UserDef_first) -> 0.3538449625 | N37: =SUMPRODUCT($B37:$K37, InfoValue_Cont) -> 0.3190516329 | O37: =SUMPRODUCT($B37:$K37, UserDef_Cont) -> 0.389650673 | P37: =SUMPRODUCT($B37:$K37, Equal_Cont) -> 0.3622577139
A38: 34 | B38: 0.3989795 | C38: 0.3930176 | D38: 0.856752 | E38: 1 | F38: 0 | G38: 0 | H38: 0.2319756 | I38: 0.1958052 | J38: 0.4546246 | K38: 1 | L38: 0.45311545 | M38: 0.6120905542 | N38: 0.3126927018 | O38: 0.4311927526 | P38: 0.3299800483
A39: 35 | B39: 0.2606273 | C39: 0.2912093 | D39: 0.7131791 | E39: 0.9457033 | F39: 0.0988227 | G39: 0 | H39: 0.2541153 | I39: 0.8841928 | J39: 0.5646732 | K39: 1 | L39: 0.5012523 | M39: 0.622044625 | N39: 0.4434035847 | O39: 0.4908477328 | P39: 0.4404918623
A40: 36 | B40: 0.3639923 | C40: 0.3872223 | D40: 0.7627641 | E40: 0.5973515 | F40: 0.6093989 | G40: 0.4998936 | H40: 0.6094614 | I40: 0.8673869 | J40: 0.2970046 | K40: 0.9044874 | L40: 0.5898963 | M40: 0.6104208917 | N40: 0.545109504 | O40: 0.5069949913 | P40: 0.5543509488
A41: 37 | B41: 0 | C41: 0 | D41: 0.2839716 | E41: 0 | F41: 0.5527268 | G41: 0.982987 | H41: 0.7756777 | I41: 0.1691598 | J41: 0 | K41: 0.7561175 | L41: 0.35206404 | M41: 0.3664606667 | N41: 0.3171024138 | O41: 0.2877678808 | P41: 0.3428211042
A42: 38 | B42: 0.2811451 | C42: 0.064147 | D42: 0.7024784 | E42: 0.8674313 | F42: 0.4978475 | G42: 0.4841623 | H42: 0.386055 | I42: 0.0884904 | J42: 0.203756 | K42: 0.6291032 | L42: 0.42046162 | M42: 0.5138840083 | N42: 0.321643491 | O42: 0.4190649554 | P42: 0.3619813939
A43: 39 | B43: 0 | C43: 0 | D43: 0.2265669 | E43: 0 | F43: 0.6610788 | G43: 0.7078394 | H43: 0.435861 | I43: 0.2060389 | J43: 0.3179049 | K43: 0.6754435 | L43: 0.32307334 | M43: 0.3421067875 | N43: 0.3186077603 | O43: 0.3142369118 | P43: 0.3399880488
A44: 40 | B44: 0.3664017 | C44: 0.488075 | D44: 0.8839373 | E44: 0.8888274 | F44: 0.3044507 | G44: 0.519312 | H44: 0.7310925 | I44: 0.0572397 | J44: 0.8439354 | K44: 0.1594769 | L44: 0.52427486 | M44: 0.5639363708 | N44: 0.5201017981 | O44: 0.6622319979 | P44: 0.5553203543
A45: 41 | B45: 0.3477747 | C45: 0.7191976 | D45: 0.7254909 | E45: 0.9819645 | F45: 0.5602287 | G45: 0.6001927 | H45: 0.3126649 | I45: 0.0564544 | J45: 0 | K45: 0.5172656 | L45: 0.4821234 | M45: 0.5609678458 | N45: 0.3747197496 | O45: 0.4420118973 | P45: 0.3846575935
A46: 42 | B46: 0.3079791 | C46: 0.161336 | D46: 0.7056869 | E46: 0.8400641 | F46: 0.2810281 | G46: 0.2898176 | H46: 0.3691318 | I46: 0.369734 | J46: 0.7528108 | K46: 0.3476059 | L46: 0.44251943 | M46: 0.50533975 | N46: 0.4382396783 | O46: 0.5502630011 | P46: 0.4619312788
A47: 43 | B47: 0.0474952 | C47: 0.1278525 | D47: 0.5849832 | E47: 0.2605936 | F47: 0.1404646 | G47: 0 | H47: 0.8095619 | I47: 0.9404664 | J47: 0.33499 | K47: 0.8384601 | L47: 0.40848675 | M47: 0.41099575 | N47: 0.3921969373 | O47: 0.3250114659 | P47: 0.4088012741
A48: 44 | B48: 0.4067583 | C48: 0.6835495 | D48: 0.9469399 | E48: 1 | F48: 0.3697859 | G48: 0 | H48: 1 | I48: 0.7929317 | J48: 0.550356 | K48: 0 | L48: 0.57503213 | M48: 0.5200634458 | N48: 0.595341369 | O48: 0.605556228 | P48: 0.6229044182
A49: 45 | B49: 0 | C49: 0 | D49: 0.3275697 | E49: 0 | F49: 0.9325349 | G49: 1 | H49: 0.632754 | I49: 0.57076 | J49: 0.3325768 | K49: 0.4610827 | L49: 0.42572781 | M49: 0.3789305083 | N49: 0.4811683415 | O49: 0.4325267666 | P49: 0.5017134786
A50: 46 | B50: 0.3939728 | C50: 0 | D50: 0.6627967 | E50: 0.1881032 | F50: 0.6113792 | G50: 0.4770674 | H50: 0.5070109 | I50: 0.5750343 | J50: 0.6718372 | K50: 0.8968734 | L50: 0.49840751 | M50: 0.5118578083 | N50: 0.4794894244 | O50: 0.4792428213 | P50: 0.5075552441
A51: 47 | B51: 0.4914771 | C51: 0.7422754 | D51: 0.7502159 | E51: 0.8080292 | F51: 0.1606939 | G51: 0 | H51: 0.448956 | I51: 1 | J51: 0.327496 | K51: 0.3227399 | L51: 0.50518834 | M51: 0.4884351292 | N51: 0.5035531048 | O51: 0.4630271582 | P51: 0.4840928323
A52: 48 | B52: 0.1207359 | C52: 0 | D52: 0.2635962 | E52: 0.0218254 | F52: 0.8672594 | G52: 0.7054214 | H52: 0.238626 | I52: 0.4118882 | J52: 0.5937987 | K52: 0.7467542 | L52: 0.39699054 | M52: 0.4127608417 | N52: 0.4195577574 | O52: 0.4171262096 | P52: 0.4342289313
A53: 49 | B53: 0.1523349 | C53: 0 | D53: 0.6522697 | E53: 0.4915343 | F53: 0.3003628 | G53: 0.4527792 | H53: 0.4091339 | I53: 0.7778324 | J53: 0.7267094 | K53: 0.1542463 | L53: 0.41172029 | M53: 0.4046488417 | N53: 0.4844514656 | O53: 0.523560707 | P53: 0.495135371
A54: 50 | B54: 0.2717729 | C54: 0.2310903 | D54: 0.5659772 | E54: 0.270966 | F54: 0.4710952 | G54: 0.1246777 | H54: 0.3944146 | I54: 0 | J54: 0 | K54: 0.6272563 | L54: 0.29572502 | M54: 0.3165234292 | N54: 0.1882054365 | O54: 0.1885212739 | P54: 0.2242176605
A55: 51 | B55: 0.1734011 | C55: 0 | D55: 0.4125529 | E55: 0.4540203 | F55: 0.7684856 | G55: 0.9767586 | H55: 0.4870354 | I55: 0 | J55: 0.5160033 | K55: 1 | L55: 0.47882572 | M55: 0.5834339625 | N55: 0.4206174694 | O55: 0.5098089231 | P55: 0.4565062273
A56: 52 | B56: 0.543967 | C56: 1 | D56: 0.8305867 | E56: 1 | F56: 0.7103869 | G56: 0.6982931 | H56: 0.4346853 | I56: 0.5215951 | J56: 0.2739233 | K56: 0.2166053 | L56: 0.62300427 | M56: 0.6196451417 | N56: 0.6032753601 | O56: 0.6228030257 | P56: 0.5938197832
A57: 53 | B57: 0.4292685 | C57: 0.4824168 | D57: 0.7850456 | E57: 0.8587019 | F57: 0.7464943 | G57: 0.7720405 | H57: 0.7248303 | I57: 0.3959121 | J57: 0.5688924 | K57: 0.5105106 | L57: 0.6274113 | M57: 0.6541788 | N57: 0.6072452482 | O57: 0.6692367749 | P57: 0.6342480277
A58: 54 | B58: 0.5729691 | C58: 0.8061245 | D58: 1 | E58: 0.9628929 | F58: 0.4686971 | G58: 0.4947651 | H58: 0.3068752 | I58: 0.6076699 | J58: 0.9132944 | K58: 0.4313907 | L58: 0.65646789 | M58: 0.6985023667 | N58: 0.659517395 | O58: 0.7455242974 | P58: 0.6539654587
A59: 55 | B59: 0.2325169 | C59: 0.2401825 | D59: 0.7544222 | E59: 0.4775348 | F59: 0.491221 | G59: 0.6486552 | H59: 0.5129402 | I59: 0 | J59: 0.6361198 | K59: 1 | L59: 0.49935926 | M59: 0.6028286042 | N59: 0.4159429726 | O59: 0.5161278303 | P59: 0.4524048314
A60: 56 | B60: 0.4285612 | C60: 0.3285111 | D60: 0.5962099 | E60: 1 | F60: 0.6185641 | G60: 1 | H60: 0.4719712 | I60: 0.9154276 | J60: 0.6825845 | K60: 0.2197329 | L60: 0.62615625 | M60: 0.6429326708 | N60: 0.7023740164 | O60: 0.7538886257 | P60: 0.6923160495
A61: 57 | B61: 0.1359909 | C61: 0.1404422 | D61: 0.5907838 | E61: 0.8245483 | F61: 0.3604345 | G61: 0.5250925 | H61: 0.5412716 | I61: 0.7770908 | J61: 0.2841018 | K61: 0.8957928 | L61: 0.50755492 | M61: 0.5961053417 | N61: 0.4635117378 | O61: 0.4860362106 | P61: 0.4727481117
A62: 58 | B62: 0 | C62: 0 | D62: 0.6119863 | E62: 0.2241706 | F62: 0.3449166 | G62: 0.3890145 | H62: 0.4384505 | I62: 0.3883306 | J62: 0.3084237 | K62: 0.4657034 | L62: 0.31709962 | M62: 0.3307231208 | N62: 0.3021019573 | O62: 0.3155884141 | P62: 0.3283922561
A63: 59 | B63: 0.4307809 | C63: 0.2154101 | D63: 0.8218111 | E63: 1 | F63: 0.1494776 | G63: 0 | H63: 0.5445309 | I63: 0.5361162 | J63: 0.5213498 | K63: 0.381105 | L63: 0.46005816 | M63: 0.5085384333 | N63: 0.4185634637 | O63: 0.4946090348 | P63: 0.4468204928
A64: 60 | B64: 0.4421605 | C64: 0.3279329 | D64: 0.8924904 | E64: 1 | F64: 0.0454889 | G64: 0.0816233 | H64: 0.7607813 | I64: 0.0330703 | J64: 0 | K64: 0.6965214 | L64: 0.4280069 | M64: 0.5187426875 | N64: 0.2659521208 | O64: 0.3436577082 | P64: 0.311130443
A65: 61 | B65: 0.2997245 | C65: 0.2088671 | D65: 0.8357402 | E65: 0.8794155 | F65: 0.883199 | G65: 1 | H65: 0.6064535 | I65: 0.7261209 | J65: 0.5000309 | K65: 0.1030709 | L65: 0.60426225 | M65: 0.58405155 | N65: 0.6521785286 | O65: 0.6981521387 | P65: 0.6760237404
A66: 62 | B66: 0.2089075 | C66: 0.5229001 | D66: 0.7678344 | E66: 0.7700258 | F66: 0.6827227 | G66: 0.9583973 | H66: 0.3237112 | I66: 0.3014179 | J66: 0.7048306 | K66: 0.4496158 | L66: 0.56903633 | M66: 0.632755 | N66: 0.5748509998 | O66: 0.6785028113 | P66: 0.5822769259
A67: 63 | B67: 0.1533376 | C67: 0.1449707 | D67: 0.4747069 | E67: 0.4860488 | F67: 0.4935265 | G67: 0.4804656 | H67: 0.8076866 | I67: 0.3301335 | J67: 0.5360938 | K67: 0.6454631 | L67: 0.45524331 | M67: 0.4888032125 | N67: 0.4410420763 | O67: 0.4791392513 | P67: 0.4764719449
A68: 64 | B68: 0.179364 | C68: 0 | D68: 0.4387744 | E68: 0.3217525 | F68: 0.5651577 | G68: 0.6011804 | H68: 0.3816091 | I68: 0.5170593 | J68: 0.3669965 | K68: 0.3528047 | L68: 0.37246986 | M68: 0.36658565 | N68: 0.3956344697 | O68: 0.3991739084 | P68: 0.4109345762
A69: 65 | B69: 0.1416593 | C69: 0.1755914 | D69: 0.6998959 | E69: 0.6175153 | F69: 0.441486 | G69: 0.4275846 | H69: 0.4255897 | I69: 0.8645203 | J69: 0.3525785 | K69: 0.3999591 | L69: 0.45463801 | M69: =SUMPRODUCT($B69:$K69, UserDef_first) / SUM(UserDef_first) -> 0.4605038 | N69: =SUMPRODUCT($B69:$K69, InfoValue_Cont) -> 0.4692183716 | O69: =SUMPRODUCT($B69:$K69, UserDef_Cont) -> 0.4655540758 | P69: =SUMPRODUCT($B69:$K69, Equal_Cont) -> 0.4769266762
A70: 66 | B70: 0.3649675 | C70: 0.3846346 | D70: 0.756127 | E70: 0.6654845 | F70: 0.7029301 | G70: 0.9624084 | H70: 0.7717119 | I70: 0.3532838 | J70: 0.6914873 | K70: 0.9897082 | L70: =AVERAGE($B70:$K70) -> 0.66427433 | M70: 0.7380027958 | N70: 0.621515027 | O70: 0.6892169673 | P70: 0.6481030674
A71: 67 | B71: 0.0701038 | C71: 0 | D71: 0.6293401 | E71: 0.3554371 | F71: 0.3741969 | G71: 0.6687167 | H71: 0.4861908 | I71: 0.7705476 | J71: 0.8167358 | K71: 0.2370299 | L71: 0.44082987 | M71: 0.432433825 | N71: 0.5307678941 | O71: 0.5671623036 | P71: 0.5406882946
A72: 68 | B72: 0.475112 | C72: 0.3128794 | D72: 0.6989787 | E72: 1 | F72: 0.4644609 | G72: 0.5435658 | H72: 0.6773661 | I72: 0.6748037 | J72: 0.5341715 | K72: 0.8568563 | L72: 0.62381944 | M72: 0.7013730125 | N72: 0.5777409379 | O72: 0.6292284527 | P72: 0.5940864355
A73: 69 | B73: 0.0233027 | C73: 0 | D73: 0.3041101 | E73: 0.2280815 | F73: 0.580453 | G73: 0.5174322 | H73: 0.1531036 | I73: 1 | J73: 0.304165 | K73: 0.2602705 | L73: 0.33709186 | M73: 0.3029846292 | N73: 0.4159305529 | O73: 0.3566022297 | P73: 0.4037437318
A74: 70 | B74: 0.1735179 | C74: 0.1037615 | D74: 0.7552382 | E74: 0.5179519 | F74: 0.7514798 | G74: 1 | H74: 0.4514478 | I74: 0.4660454 | J74: 0.8145556 | K74: 0.5595031 | L74: 0.55935012 | M74: 0.5996430042 | N74: 0.588169281 | O74: 0.6694185032 | P74: 0.6122530078
A75: 71 | B75: 0.5384685 | C75: 0.6324252 | D75: 0.7975758 | E75: 1 | F75: 0.8579625 | G75: 1 | H75: 0.5920497 | I75: 0.0629802 | J75: 0.5444419 | K75: 0.2432425 | L75: 0.62691463 | M75: 0.6567083792 | N75: 0.6035855866 | O75: 0.712968191 | P75: 0.6296451391
A76: 72 | B76: 0.1536885 | C76: 0.0088472 | D76: 0.5560517 | E76: 0.8366047 | F76: 0.6972946 | G76: 0.9954106 | H76: 0.8208078 | I76: 0.7513215 | J76: 0.9702686 | K76: 0.152263 | L76: 0.59425582 | M76: 0.5997619292 | N76: 0.7062827148 | O76: 0.7933152265 | P76: 0.7324718099
A77: 73 | B77: 0.6409475 | C77: 1 | D77: 1 | E77: 1 | F77: 0.5151023 | G77: 0.4549187 | H77: 0.5360106 | I77: 0.5254798 | J77: 0.2498633 | K77: 0.3856199 | L77: 0.63079421 | M77: 0.6358327375 | N77: 0.5693170458 | O77: 0.5838101297 | P77: 0.5678016052
A78: 74 | B78: 0.3609848 | C78: 0.6703852 | D78: 0.7889439 | E78: 0.964638 | F78: 0.3907603 | G78: 0.3892689 | H78: 0.0933671 | I78: 0.6994787 | J78: 0.3036113 | K78: 0.1438293 | L78: 0.48052675 | M78: 0.503509425 | N78: 0.4776192809 | O78: 0.5114052569 | P78: 0.4600843701
A79: 75 | B79: 0.3408212 | C79: 0.4382811 | D79: 0.6608509 | E79: 0.7295527 | F79: 0.2964732 | G79: 0.0478631 | H79: 0.3659945 | I79: 0.3855878 | J79: 0.7705927 | K79: 0.2851649 | L79: 0.43211821 | M79: 0.4631706708 | N79: 0.4353182698 | O79: 0.5126133762 | P79: 0.4506376225
A80: 76 | B80: 0.3414061 | C80: 1 | D80: 0.6796502 | E80: 0.9202769 | F80: 0.1789523 | G80: 0 | H80: 0.3724975 | I80: 0.289833 | J80: 0.5141878 | K80: 0.6020871 | L80: 0.48988909 | M80: 0.5706821958 | N80: 0.4243664212 | O80: 0.487531179 | P80: 0.417532326
A81: 77 | B81: 0.3792457 | C81: 0.4665691 | D81: 0.6886228 | E81: 0.4311945 | F81: 0.8211812 | G81: 0.7087581 | H81: 0.5023921 | I81: 0.4524405 | J81: 0.5248054 | K81: 0.2205546 | L81: 0.5195764 | M81: 0.4760449708 | N81: 0.5476029958 | O81: 0.5545403482 | P81: 0.5632363814
A82: 78 | B82: 0.2981618 | C82: 0.2962118 | D82: 0.7382386 | E82: 0.7163922 | F82: 0.3933541 | G82: 0.3582865 | H82: 0.7829183 | I82: 0 | J82: 0.1306426 | K82: 0.2531233 | L82: 0.39673292 | M82: 0.4107374917 | N82: 0.323536755 | O82: 0.382756582 | P82: 0.3713806497
A83: 79 | B83: 0.4824125 | C83: 0.5380578 | D83: 0.9523466 | E83: 0.9735192 | F83: 0.3173527 | G83: 0 | H83: 0.4967823 | I83: 0.1884028 | J83: 0.6301717 | K83: 0.5228078 | L83: 0.51018534 | M83: 0.57657955 | N83: 0.428283382 | O83: 0.5340255951 | P83: 0.4631305909
A84: 80 | B84: 0.2997053 | C84: 0.2166491 | D84: 0.5850093 | E84: 0.176676 | F84: 0.3771335 | G84: 0 | H84: 0.6689174 | I84: 0 | J84: 0.3527446 | K84: 0.5449907 | L84: 0.32218259 | M84: 0.3173183458 | N84: 0.2532542421 | O84: 0.2661431666 | P84: 0.300741291
A85: 81 | B85: 0.1307118 | C85: 0 | D85: 0.6253759 | E85: 0.1199998 | F85: 0.5433828 | G85: 0.2474913 | H85: 0.1669011 | I85: 0 | J85: 0.6241628 | K85: 0.3262129 | L85: 0.27842384 | M85: 0.2890738875 | N85: 0.264971294 | O85: 0.3341189973 | P85: 0.3051998537
A86: 82 | B86: 0.3981176 | C86: 0.5440797 | D86: 0.7683756 | E86: 1 | F86: 0.3451089 | G86: 0.5313914 | H86: 0.4437681 | I86: 0.9120761 | J86: 0.5288042 | K86: 0.7529482 | L86: 0.62246698 | M86: 0.6945545458 | N86: 0.6033283087 | O86: 0.6349807266 | P86: 0.5911962536
A87: 83 | B87: 0.376938 | C87: 0.2410823 | D87: 0.7287589 | E87: 0.7481694 | F87: 0.3352113 | G87: 0.4017381 | H87: 0.3317354 | I87: 0.2081775 | J87: 0.0074758 | K87: 0.5761075 | L87: 0.39553942 | M87: 0.4600321167 | N87: 0.2913209544 | O87: 0.3378581359 | P87: 0.3128589698
A88: 84 | B88: 0 | C88: 0 | D88: 0.4424159 | E88: 0.2543178 | F88: 0.3219101 | G88: 0 | H88: 0.2936448 | I88: 0 | J88: 1 | K88: 0.3731997 | L88: 0.26854883 | M88: 0.318248925 | N88: 0.28688976 | O88: 0.4020093638 | P88: 0.3275531289
A89: 85 | B89: 0.2452934 | C89: 0.5184894 | D89: 0.7720467 | E89: 0.7479903 | F89: 0.6012123 | G89: 0.3625262 | H89: 0.3633544 | I89: 0.3551321 | J89: 0.9923482 | K89: 0.6874958 | L89: 0.56458888 | M89: 0.6411715875 | N89: 0.5533331961 | O89: 0.6592085208 | P89: 0.5735378636
A90: 86 | B90: 0.5472432 | C90: 0.805883 | D90: 0.939658 | E90: 1 | F90: 0.7669926 | G90: 0.8464333 | H90: 0.8673568 | I90: 0.3316862 | J90: 0.8430898 | K90: 0.120079 | L90: 0.70684219 | M90: 0.6947218792 | N90: 0.7332335413 | O90: 0.8260618482 | P90: 0.758351438
A91: 87 | B91: 0.518177 | C91: 0.5267632 | D91: 0.8802938 | E91: 1 | F91: 0.6348247 | G91: 1 | H91: 1 | I91: 0.0498828 | J91: 0.3470441 | K91: 0.2527719 | L91: 0.62097575 | M91: 0.6384162625 | N91: 0.5749352021 | O91: 0.6681332461 | P91: 0.6160828827
A92: 88 | B92: 0.2931388 | C92: 0.7898685 | D92: 0.8558995 | E92: 1 | F92: 0.4980835 | G92: 0.4822368 | H92: 0.4196427 | I92: 0.4227958 | J92: 0.7541172 | K92: 0.3392072 | L92: 0.585499 | M92: 0.6387622833 | N92: 0.5844398621 | O92: 0.6820789815 | P92: 0.5893710792
A93: 89 | B93: 0.6677362 | C93: 0.8249587 | D93: 0.9964486 | E93: 1 | F93: 0.5602518 | G93: 0.5882252 | H93: 0.4691499 | I93: 0.7718758 | J93: 0.6896152 | K93: 0.7239235 | L93: 0.72921849 | M93: 0.7735402917 | N93: 0.6976109068 | O93: 0.7373273788 | P93: 0.6909508812
A94: 90 | B94: 0.2451339 | C94: 0.7591107 | D94: 0.7364812 | E94: 0.530044 | F94: 0.4273341 | G94: 0.0479527 | H94: 0.5533906 | I94: 0.7293065 | J94: 0.6872024 | K94: 0.780265 | L94: 0.54962211 | M94: 0.5709733 | N94: 0.5332190207 | O94: 0.5226108104 | P94: 0.5351940318
A95: 91 | B95: 0 | C95: 0 | D95: 0.5374506 | E95: 0.2986902 | F95: 0.4224758 | G95: 0.9065694 | H95: 0.2074324 | I95: 0.6531695 | J95: 0.5531003 | K95: 0.8701149 | L95: 0.44490031 | M95: 0.5242088958 | N95: 0.4551023394 | O95: 0.4883314462 | P95: 0.4508726651
A96: 92 | B96: 0.3740422 | C96: 0.0154363 | D96: 0.5189959 | E96: 0.5899022 | F96: 0.574054 | G96: 0.4451615 | H96: 0.5719935 | I96: 0.2616265 | J96: 0.6693226 | K96: 0.406807 | L96: 0.44273417 | M96: 0.4657324542 | N96: 0.4416376754 | O96: 0.514787533 | P96: 0.4807902321
A97: 93 | B97: 0.376709 | C97: 0.1480384 | D97: 0.6800749 | E97: 0.775696 | F97: 0.3078552 | G97: 0.0549512 | H97: 0.5882493 | I97: 0.0950282 | J97: 0.3384351 | K97: 0.2630315 | L97: 0.36280688 | M97: 0.3915776958 | N97: 0.3003009911 | O97: 0.3783156244 | P97: 0.347127553
A98: 94 | B98: 0.4750057 | C98: 0.7447739 | D98: 0.8978087 | E98: 1 | F98: 0.5705436 | G98: 0.6244614 | H98: 0.4030823 | I98: 0.027813 | J98: 0.539601 | K98: 0.8459721 | L98: 0.61290617 | M98: 0.7284857292 | N98: 0.5055954796 | O98: 0.6252330882 | P98: 0.5245448441
A99: 95 | B99: 0.5165972 | C99: 0.5047868 | D99: 0.7959904 | E99: 0.5815012 | F99: 0.5446992 | G99: 0.2285262 | H99: 0.2998431 | I99: 0.5364003 | J99: 0.2480521 | K99: 1 | L99: 0.52563965 | M99: 0.5765139625 | N99: 0.4207126621 | O99: 0.408645223 | P99: 0.4297867197
A100: 96 | B100: 0.1649284 | C100: 0.0710263 | D100: 0.7315571 | E100: 0.5287041 | F100: 0.4915707 | G100: 0.918489 | H100: 0.6113266 | I100: 0.2798361 | J100: 0.6858785 | K100: 0.7585394 | L100: 0.52418562 | M100: 0.600089525 | N100: 0.5047966028 | O100: 0.5977128307 | P100: 0.5353294079
A101: 97 | B101: 0.233111 | C101: 0.1658202 | D101: 0.6684365 | E101: 0.5918851 | F101: 0.5524157 | G101: 0.9228181 | H101: 0.3143398 | I101: 0.5580915 | J101: 0.1804926 | K101: 0.0178622 | L101: 0.42052727 | M101: 0.4035475 | N101: 0.4510033048 | O101: 0.4722710627 | P101: 0.4547667777
A102: 98 | B102: 0.5994327 | C102: 0.6518295 | D102: 0.8437781 | E102: 0.9020736 | F102: 0.2631898 | G102: 0 | H102: 0.5367216 | I102: 0.8368613 | J102: 0.2430363 | K102: 0.4285542 | L102: 0.53054771 | M102: 0.5254028542 | N102: 0.484366087 | O102: 0.4606412393 | P102: 0.4843192881
A103: 99 | B103: 0.3716097 | C103: 0.4518837 | D103: 0.6839095 | E103: 0.8753515 | F103: 0.2981895 | G103: 0.269835 | H103: 0.6847849 | I103: 0.8521898 | J103: 0.7785379 | K103: 0.3670735 | L103: 0.5633365 | M103: 0.5764835 | N103: 0.6019527325 | O103: 0.6378956198 | P103: 0.6074236819
A104: 100 | B104: 0.414436 | C104: 0.2953423 | D104: 0.757671 | E104: 0.6002955 | F104: 0.577346 | G104: 0.2979041 | H104: 0.5005134 | I104: 0.6779335 | J104: 0.5645493 | K104: 0.0614601 | L104: 0.47474512 | M104: 0.4238497375 | N104: 0.5119939814 | O104: 0.52185005 | P104: 0.5322894171

Sheet Indices_compared
A1: Comparison of five indices:
A2: Index | C2: Mean | D2: SD | E2: Information value (CoV) | F2: Correlations:
E3: = SD / Mean | F3: Index1a | G3: Index1b | H3: Index2a | I3: Index2b | J3: Index2c
A4: Index1a | B4: Unweighted (arithmetic mean) | C4: =AVERAGE(INDIRECT($A4)) -> 0.5011311219 | D4: =_xlfn.STDEV.S(INDIRECT($A4)) -> 0.1162999655 | E4: =D4/C4 -> 0.2320749209 | F4: =CORREL(INDIRECT($A4),INDIRECT(F$3)) -> 1 | G4: 0.9394597429 | H4: 0.8979516527 | I4: 0.8770516171 | J4: 0.8879510835
A5: Index1b | B5: Weighted mean (user defined weights) | C5: 0.5286466945 | D5: 0.1287985426 | E5: 0.2436382255 | F5: 0.9394597429 | G5: 1 | H5: 0.7420454497 | I5: 0.8091658055 | J5: 0.7348388759
A6: Index2a | B6: Betti-Verma: Information value | C6: 0.488342638 | D6: 0.1300482728 | E6: 0.2663053821 | F6: 0.8979516527 | G6: 0.7420454497 | H6: 1 | I6: 0.9279691775 | J6: 0.9918650267
A7: Index2b | B7: Betti-Verma: User-defined first weights | C7: 0.5275457725 | D7: 0.1416147939 | E7: 0.2684407711 | F7: 0.8770516171 | G7: 0.8091658055 | H7: 0.9279691775 | I7: 1 | J7: 0.9450051082
A8: Index2c | B8: Betti-Verma: Equal first weights | C8: 0.5039202671 | D8: 0.1224062422 | E8: 0.2429079562 | F8: 0.8879510835 | G8: 0.7348388759 | H8: 0.9918650267 | I8: 0.9450051082 | J8: 1
C10: Distributions: | E10: Index values | F10: Frequencies of occurrence
E11: Upper limit of interval | F11: Index1a | G11: Index1b | H11: Index2a | I11: Index2b | J11: Index2c
E12: 0 | F12: =FREQUENCY(INDIRECT(F$11), $E$12:$E$21) / 100 -> 0 | G12: =FREQUENCY(INDIRECT(G$11), $E$12:$E$21) / 100 -> 0 | H12: =FREQUENCY(INDIRECT(H$11), $E$12:$E$21) / 100 -> 0 | I12: =FREQUENCY(INDIRECT(I$11), $E$12:$E$21) / 100 -> 0 | J12: =FREQUENCY(INDIRECT(J$11), $E$12:$E$21) / 100 -> 0 | L12: FREQUENCY is a multi-cell array function and has to be entered by pressing Shift-Ctrl-Enter.
E13: 0.1 | F13: 0 | G13: 0 | H13: 0 | I13: 0 | J13: 0 | L13: The intervals (which Excel calls "bins") are passed to the function by their upper bounds. For n bounds, select the first n-1, and select all n target cells.
E14: 0.2 | F14: 0 | G14: 0 | H14: 0.02 | I14: 0.02 | J14: 0 | M14: 1. Select the range R12C6:R22C6 (11 cells); type "=FREQUENCY(" in the formula bar (without the inverted quotes).
E15: 0.3 | F15: 0.05 | G15: 0.03 | H15: 0.06 | I15: 0.04 | J15: 0.03 | M15: 2. The final formula is "=FREQUENCY(INDIRECT(R11C), R12C5:R21C5) / 100", where
E16: 0.4 | F16: 0.13 | G16: 0.13 | H16: 0.15 | I16: 0.12 | J16: 0.17 | N16: INDIRECT(R11C) references the data range for the particular index, and
E17: 0.5 | F17: 0.32 | G17: 0.23 | H17: 0.29 | I17: 0.24 | J17: 0.3 | N17: R12C5:R21C is the bins_range (the upper bounds) with only 10 cells.
E18: 0.6 | F18: 0.28 | G18: 0.31 | H18: 0.28 | I18: 0.26 | J18: 0.27 | N18: "/ 100" is ok here (we have 100 observations in the data table), but this has to be adjusted to your actual sample size.
E19: 0.7 | F19: 0.17 | G19: 0.21 | H19: 0.14 | I19: 0.22 | J19: 0.18
E20: 0.8 | F20: 0.05 | G20: 0.08 | H20: 0.06 | I20: 0.08 | J20: 0.04
E21: 0.9 | F21: 0 | G21: 0.01 | H21: 0 | I21: 0.02 | J21: 0.01
E22: 1 | F22: 0 | G22: 0 | H22: 0 | I22: 0 | J22: 0
E23: Total | F23: =SUM(F12:F22) -> 1 | G23: =SUM(G12:G22) -> 1 | H23: 1 | I23: 1 | J23: 1

Sheet Contributions_by_indicator
A1: By way of example, we calculate the contributions of the various indicators to one of the indices,
A2: Index2a: Betti-Verma (variant: information value)
E4: Contribution = Mean * weight
A6: Case of interest | B6: Indicator | C6: Mean | D6: BV-Weight | E6: Contribution | F6: Share | G6: Comment
A7: Four indicators strongly associated | B7: x1 | C7: =AVERAGE(INDIRECT($B7&"_")) -> 0.307356805 | D7: =Betti_Verma_weights!$C$45 -> 0.07040736571 | E7: =C7*D7 -> 0.02164018297 | F7: =E7/E$17 -> 0.04431352352 | G7: Sum of weights on the
B8: x2 | C8: =AVERAGE(INDIRECT($B8&"_")) -> 0.34529384 | D8: =Betti_Verma_weights!$D$45 -> 0.1074889939 | E8: =C8*D8 -> 0.03711528746 | F8: =E8/E$17 -> 0.07600255347 | G8: four indicators =
B9: x3 | C9: 0.695754 | D9: =Betti_Verma_weights!$E$45 -> 0.03437582808 | E9: 0.02391711989 | F9: 0.04897610413 | G9: =SUM(D7:D10) -> 0.2773131262
B10: x4 | C10: 0.659874974 | D10: =Betti_Verma_weights!$F$45 -> 0.06504093856 | E10: 0.04291888764 | F10: 0.08788683252 | G10: Deflated for reduncancy
A11: Two strongly associated | B11: x5 | C11: 0.500103018 | D11: =Betti_Verma_weights!$G$45 -> 0.1004582428 | E11: 0.05023947041 | F11: 0.1028775014 | G11: Two indic., less redund.
B12: x6 | C12: 0.508182163 | D12: =Betti_Verma_weights!$H$45 -> 0.1397017739 | E12: 0.07099394965 | F12: 0.1453773317 | G12: =D11+D12 -> 0.2401600167
A13: Isolates, very few negative associations | B13: x7 | C13: 0.499537427 | D13: =Betti_Verma_weights!$I$45 -> 0.1075214989 | E13: 0.05371101292 | F13: 0.1099863267 | G13: Indep., not deflated
B14: x8 | C14: 0.4992101 | D14: =Betti_Verma_weights!$J$45 -> 0.1837767314 | E14: 0.09174320047 | F14: 0.1878664555 | G14: =D13+D14 -> 0.2912982304
A15: Isolate, mixed | B15: x9 | C15: 0.50234909 | D15: =Betti_Verma_weights!$K$45 -> 0.1912286267 | E15: 0.09606352659 | F15: 0.1967133711 | G15: Deflate? Exclude?
A16: Isolate , negative | B16: x10 | C16: 0.493649802 | D16: =Betti_Verma_weights!$L$45 -> 0 | E16: 0 | F16: 0 | G16: Correctly excluded
C17: Total: | D17: =SUM(D7:D16) -> 1 | E17: =SUM(E7:E16) -> 0.488342638 | F17: 1
B19: Aggregate deprivation (or gap, or severity, etc.) level =
B20: Total of contributions = 0.488.

Sheet BV_w_sampling_weights
A1: id | B1: s_weights | C1: y1 | D1: y2 | E1: y3 | F1: y4 | G1: y5 | H1: y6 | I1: y7 | J1: y8 | K1: y9 | L1: y10 | O1: The following statistics are noteworthy:
A2: 1 | B2: 0.891 | C2: 0 | D2: 0.0968057 | E2: 0.3687922 | F2: 0.3125061 | G2: 0.1741119 | H2: 0 | I2: 0.6878377 | J2: 0.1958989 | K2: 0.0556548 | L2: 0.7212605 | O2: Indicator | P2: Weighted mean | Q2: Weighted SD | R2: Weighted C.o.V.
A3: 2 | B3: 0.635 | C3: 0.3858637 | D3: 0.3118555 | E3: 0.7619708 | F3: 0.7799424 | G3: 0.8320824 | H3: 0.8805346 | I3: 0.6723175 | J3: 1 | K3: 1 | L3: 0.2731308 | O3: y1 | P3: =WeightedAvg(INDIRECT($O3&"_"),s_weights) -> 0.3027103039 | Q3: =WeightedSD2(INDIRECT($O3&"_"),s_weights) -> 0.1751710294 | R3: =$Q3/$P3 -> 0.5786754767
A4: 3 | B4: 0.88 | C4: 0.4583524 | D4: 0.5856686 | E4: 0.7078855 | F4: 1 | G4: 0.7745097 | H4: 0.9074144 | I4: 0.6061915 | J4: 0.8334434 | K4: 0.4730663 | L4: 0.6585976 | O4: y2 | P4: 0.3342459124 | Q4: 0.3029817049 | R4: =$Q4/$P4 -> 0.9064634561
A5: 4 | B5: 2.378 | C5: 0.121715 | D5: 0 | E5: 0.4294099 | F5: 0.0251318 | G5: 0.4240513 | H5: 0.0790777 | I5: 0.4566294 | J5: 0.9116816 | K5: 0.3143635 | L5: 0.2963912 | O5: y3 | P5: 0.6877918642 | Q5: 0.185085768 | R5: 0.269101421
A6: 5 | B6: 1.202 | C6: 0.3588835 | D6: 0.259292 | E6: 0.6504753 | F6: 0.6147868 | G6: 0.5497213 | H6: 0.5838792 | I6: 0.2671064 | J6: 0.8057551 | K6: 0.61744 | L6: 0.4765985 | O6: y4 | P6: 0.6615787628 | Q6: 0.3145007014 | R6: 0.4753790767
A7: 6 | B7: 2.22 | C7: 0.1229391 | D7: 0 | E7: 0.2809352 | F7: 0.0464795 | G7: 0.3788213 | H7: 0.1047234 | I7: 0.5335307 | J7: 0.5587463 | K7: 0.7845391 | L7: 0.779965 | O7: y5 | P7: 0.4902923503 | Q7: 0.1984792782 | R7: 0.4048182234
A8: 7 | B8: 0.638 | C8: 0.5208004 | D8: 0.5733281 | E8: 0.8956906 | F8: 1 | G8: 0.6445332 | H8: 0.9093123 | I8: 0.2849174 | J8: 0.0533199 | K8: 0.4527252 | L8: 0.593459 | O8: y6 | P8: 0.4847981375 | Q8: 0.3335965095 | R8: 0.6881142555
A9: 8 | B9: 0.599 | C9: 0.3042715 | D9: 0.4657593 | E9: 0.8081882 | F9: 0.6814616 | G9: 0.4735529 | H9: 0.6908637 | I9: 0.6439291 | J9: 1 | K9: 1 | L9: 0.4845174 | O9: y7 | P9: 0.5043102341 | Q9: 0.193886168 | R9: 0.384458127
A10: 9 | B10: 1.242 | C10: 0.4828641 | D10: 0.7545037 | E10: 0.9375651 | F10: 1 | G10: 0.4135486 | H10: 0.5652282 | I10: 0.1375477 | J10: 0 | K10: 0.7248528 | L10: 0.1401716 | O10: y8 | P10: 0.525296349 | Q10: 0.3176779453 | R10: 0.6047594771
A11: 10 | B11: 1.19 | C11: 0.6053243 | D11: 0.4456611 | E11: 0.8799941 | F11: 0.9789482 | G11: 0.2311956 | H11: 0.0177647 | I11: 0.537074 | J11: 0.9754481 | K11: 0.2729346 | L11: 0.5002393 | O11: y9 | P11: 0.5155537081 | Q11: 0.2514935944 | R11: 0.4878125993
A12: 11 | B12: 1.016 | C12: 0.012052 | D12: 0 | E12: 0.6653038 | F12: 0.5139226 | G12: 0.6041155 | H12: 0.9496343 | I12: 0.495636 | J12: 0.1392026 | K12: 0.5267801 | L12: 0.127625 | O12: y10 | P12: 0.4774521412 | Q12: 0.2787693109 | R12: 0.5838685951
A13: 12 | B13: 1.931 | C13: 0.1111596 | D13: 0.3123208 | E13: 0.5186059 | F13: 0.5093064 | G13: 0.5569324 | H13: 0.359862 | I13: 0.6048931 | J13: 1 | K13: 0.624715 | L13: 0.6274248 | Q13: [If errors show, try F9 to cause recalculation.]
A14: 13 | B14: 0.652 | C14: 0.1168118 | D14: 0.2536306 | E14: 0.595008 | F14: 0.5099083 | G14: 0.6336834 | H14: 0.9068578 | I14: 0.4104549 | J14: 0.0777218 | K14: 0.2003034 | L14: 0.4184013
A15: 14 | B15: 1.92 | C15: 0.577566 | D15: 0.990168 | E15: 0.9285766 | F15: 0.9626926 | G15: 0.6742935 | H15: 0.6597928 | I15: 0.276921 | J15: 0.5202819 | K15: 0 | L15: 0.8553252 | O15: Matrix of weighted correlation coefficients:
A16: 15 | B16: 1.195 | C16: 0.2266963 | D16: 0.2427944 | E16: 0.748822 | F16: 0.4134571 | G16: 0.5375689 | H16: 0.8008693 | I16: 0.3304468 | J16: 0.91888 | K16: 0.4413773 | L16: 0.1638093 | P16: y1 | Q16: y2 | R16: y3 | S16: y4 | T16: y5 | U16: y6 | V16: y7 | W16: y8 | X16: y9 | Y16: y10
A17: 16 | B17: 0.811 | C17: 0.1623919 | D17: 0 | E17: 0.5993113 | F17: 0.232293 | G17: 0.7688294 | H17: 1 | I17: 0.2406394 | J17: 1 | K17: 0.40823 | L17: 0.6971499 | O17: y1 | P17: =WtCorrel(INDIRECT($O17&"_"),INDIRECT(P$16&"_"),s_weights) -> 1 | Q17: 0.7650534111 | R17: 0.7891864271 | S17: 0.7615756111 | T17: -0.02954887924 | U17: -0.06173074932 | V17: 0.03128540008 | W17: -0.003964558546 | X17: -0.1390101518 | Y17: 0.01036341247
A18: 17 | B18: 1.261 | C18: 0.4185179 | D18: 0 | E18: 0.829589 | F18: 0.9049548 | G18: 0.1610498 | H18: 0.0139629 | I18: 0.2331759 | J18: 0.8416876 | K18: 0.6132043 | L18: 0.3630371 | O18: y2 | P18: 0.7650534111 | Q18: 1 | R18: 0.7276509849 | S18: 0.6794826888 | T18: -0.01220083387 | U18: -0.06032271452 | V18: 0.01440709902 | W18: 0.05004867556 | X18: -0.1561363331 | Y18: 0.05151454047
A19: 18 | B19: 1.376 | C19: 0.0767288 | D19: 0 | E19: 0.3289277 | F19: 0 | G19: 0.5070903 | H19: 0.2190742 | I19: 0.6064554 | J19: 0.5470896 | K19: 0.9637645 | L19: 0.8299712 | O19: y3 | P19: 0.7891864271 | Q19: 0.7276509849 | R19: 1 | S19: 0.8099695029 | T19: -0.1512836748 | U19: -0.01120430177 | V19: 0.03607349299 | W19: -0.005586811803 | X19: -0.07723309841 | Y19: -0.1034278175
A20: 19 | B20: 1.878 | C20: 0.2200056 | D20: 0.1472971 | E20: 0.520771 | F20: 0.2939337 | G20: 0.4132566 | H20: 0.0834329 | I20: 0.1061209 | J20: 0.3033052 | K20: 0.2971486 | L20: 0.3668494 | O20: y4 | P20: 0.7615756111 | Q20: 0.6794826888 | R20: 0.8099695029 | S20: 1 | T20: -0.1605842178 | U20: 0.03622524528 | V20: 0.07235467085 | W20: 0.01715524433 | X20: -0.01688749802 | Y20: -0.1071774055
A21: 20 | B21: 0.877 | C21: 0.3125771 | D21: 0.228437 | E21: 0.7316207 | F21: 0.5415294 | G21: 0.7062327 | H21: 0.7176274 | I21: 0.5877628 | J21: 0.1262541 | K21: 0.4499909 | L21: 0 | O21: y5 | P21: -0.02954887924 | Q21: -0.01220083387 | R21: -0.1512836748 | S21: -0.1605842178 | T21: 1 | U21: 0.7917347504 | V21: 0.1343446075 | W21: -0.05283255337 | X21: 0.07568477367 | Y21: -0.06491219304
A22: 21 | B22: 0.945 | C22: 0.3000937 | D22: 0.2684852 | E22: 0.9026445 | F22: 0.594659 | G22: 0.4265278 | H22: 0.6119498 | I22: 0.9811963 | J22: 0.2425937 | K22: 1 | L22: 0.5116683 | O22: y6 | P22: -0.06173074932 | Q22: -0.06032271452 | R22: -0.01120430177 | S22: 0.03622524528 | T22: 0.7917347504 | U22: 1 | V22: 0.1244004556 | W22: -0.06602910122 | X22: 0.06535221868 | Y22: -0.08404421452
A23: 22 | B23: 1.552 | C23: 0 | D23: 0 | E23: 0.6018088 | F23: 0.3013783 | G23: 0.5772533 | H23: 1 | I23: 0.6388542 | J23: 1 | K23: 0.5807465 | L23: 0.1725565 | O23: y7 | P23: 0.03128540008 | Q23: 0.01440709902 | R23: 0.03607349299 | S23: 0.07235467085 | T23: 0.1343446075 | U23: 0.1244004556 | V23: 1 | W23: 0.01575073281 | X23: 0.1437939836 | Y23: -0.04517105535
A24: 23 | B24: 1.554 | C24: 0.4021602 | D24: 0.8825381 | E24: 0.7807156 | F24: 0.9140548 | G24: 0.5745323 | H24: 0.5569978 | I24: 0.6817281 | J24: 0.9808288 | K24: 0.0996497 | L24: 0.2696031 | O24: y8 | P24: -0.003964558546 | Q24: 0.05004867556 | R24: -0.005586811803 | S24: 0.01715524433 | T24: -0.05283255337 | U24: -0.06602910122 | V24: 0.01575073281 | W24: 1 | X24: -0.03141411192 | Y24: -0.08429314019
A25: 24 | B25: 1.872 | C25: 0.25985 | D25: 0.0913804 | E25: 0.799543 | F25: 0.8774245 | G25: 0.3424573 | H25: 0.3223761 | I25: 0.5799668 | J25: 0.7274808 | K25: 0.4061278 | L25: 0.325681 | O25: y9 | P25: -0.1390101518 | Q25: -0.1561363331 | R25: -0.07723309841 | S25: -0.01688749802 | T25: 0.07568477367 | U25: 0.06535221868 | V25: 0.1437939836 | W25: -0.03141411192 | X25: 1 | Y25: -0.08246236253
A26: 25 | B26: 2.486 | C26: 0.1818306 | D26: 0 | E26: 0.5069004 | F26: 0.690071 | G26: 0.6324694 | H26: 0.7464464 | I26: 0.4978698 | J26: 0.5154009 | K26: 1 | L26: 0.4943389 | O26: y10 | P26: 0.01036341247 | Q26: 0.05151454047 | R26: -0.1034278175 | S26: -0.1071774055 | T26: -0.06491219304 | U26: -0.08404421452 | V26: -0.04517105535 | W26: -0.08429314019 | X26: -0.08246236253 | Y26: 1
A27: 26 | B27: 1.531 | C27: 0.5625388 | D27: 0.8092554 | E27: 0.8270568 | F27: 0.7997136 | G27: 0.4381184 | H27: 0.1902792 | I27: 0.5961446 | J27: 1 | K27: 0 | L27: 0.6412385
A28: 27 | B28: 0.859 | C28: 0.7037758 | D28: 1 | E28: 0.9935858 | F28: 1 | G28: 0.8210068 | H28: 0.834695 | I28: 0.418374 | J28: 0.3868173 | K28: 0.2932758 | L28: 0.9349607
A29: 28 | B29: 1.031 | C29: 0.8005483 | D29: 1 | E29: 1 | F29: 1 | G29: 0.5947857 | H29: 0.5991236 | I29: 0.4457135 | J29: 1 | K29: 0.6751013 | L29: 0.4742281
A30: 29 | B30: 1.315 | C30: 0.1891088 | D30: 0.0843515 | E30: 0.425018 | F30: 0.5954822 | G30: 0.7833694 | H30: 0.7327172 | I30: 0.9243801 | J30: 0.5689931 | K30: 0.433828 | L30: 0
A31: 30 | B31: 1.4 | C31: 0.3701656 | D31: 0.4828261 | E31: 1 | F31: 1 | G31: 0.5440514 | H31: 0.7001439 | I31: 0.3142087 | J31: 0.9459723 | K31: 0.412677 | L31: 0.1672727
A32: 31 | B32: 2.352 | C32: 0.429385 | D32: 0.3769095 | E32: 0.8778751 | F32: 1 | G32: 0.2470365 | H32: 0.5558574 | I32: 0.310756 | J32: 0.1550062 | K32: 0.2695584 | L32: 0.3711611
A33: 32 | B33: 2.46 | C33: 0.4654393 | D33: 0.8559191 | E33: 0.8593451 | F33: 1 | G33: 0.5855711 | H33: 0.7011928 | I33: 0.5481676 | J33: 0.4667218 | K33: 0.4071583 | L33: 1
A34: 33 | B34: 1.038 | C34: 0 | D34: 0 | E34: 0.2329369 | F34: 0.1940093 | G34: 0.4387861 | H34: 0.0951644 | I34: 0.5830927 | J34: 0.0645121 | K34: 0.8706884 | L34: 0.6144819
A35: 34 | B35: 0.594 | C35: 0.3989795 | D35: 0.3930176 | E35: 0.856752 | F35: 1 | G35: 0 | H35: 0 | I35: 0.2319756 | J35: 0.1958052 | K35: 0.4546246 | L35: 1
A36: 35 | B36: 2.104 | C36: 0.2606273 | D36: 0.2912093 | E36: 0.7131791 | F36: 0.9457033 | G36: 0.0988227 | H36: 0 | I36: 0.2541153 | J36: 0.8841928 | K36: 0.5646732 | L36: 1
A37: 36 | B37: 0.936 | C37: 0.3639923 | D37: 0.3872223 | E37: 0.7627641 | F37: 0.5973515 | G37: 0.6093989 | H37: 0.4998936 | I37: 0.6094614 | J37: 0.8673869 | K37: 0.2970046 | L37: 0.9044874
A38: 37 | B38: 0.837 | C38: 0 | D38: 0 | E38: 0.2839716 | F38: 0 | G38: 0.5527268 | H38: 0.982987 | I38: 0.7756777 | J38: 0.1691598 | K38: 0 | L38: 0.7561175
A39: 38 | B39: 1.162 | C39: 0.2811451 | D39: 0.064147 | E39: 0.7024784 | F39: 0.8674313 | G39: 0.4978475 | H39: 0.4841623 | I39: 0.386055 | J39: 0.0884904 | K39: 0.203756 | L39: 0.6291032
A40: 39 | B40: 0.579 | C40: 0 | D40: 0 | E40: 0.2265669 | F40: 0 | G40: 0.6610788 | H40: 0.7078394 | I40: 0.435861 | J40: 0.2060389 | K40: 0.3179049 | L40: 0.6754435
A41: 40 | B41: 2.452 | C41: 0.3664017 | D41: 0.488075 | E41: 0.8839373 | F41: 0.8888274 | G41: 0.3044507 | H41: 0.519312 | I41: 0.7310925 | J41: 0.0572397 | K41: 0.8439354 | L41: 0.1594769
A42: 41 | B42: 0.536 | C42: 0.3477747 | D42: 0.7191976 | E42: 0.7254909 | F42: 0.9819645 | G42: 0.5602287 | H42: 0.6001927 | I42: 0.3126649 | J42: 0.0564544 | K42: 0 | L42: 0.5172656
A43: 42 | B43: 2.235 | C43: 0.3079791 | D43: 0.161336 | E43: 0.7056869 | F43: 0.8400641 | G43: 0.2810281 | H43: 0.2898176 | I43: 0.3691318 | J43: 0.369734 | K43: 0.7528108 | L43: 0.3476059
A44: 43 | B44: 1.949 | C44: 0.0474952 | D44: 0.1278525 | E44: 0.5849832 | F44: 0.2605936 | G44: 0.1404646 | H44: 0 | I44: 0.8095619 | J44: 0.9404664 | K44: 0.33499 | L44: 0.8384601
A45: 44 | B45: 2.005 | C45: 0.4067583 | D45: 0.6835495 | E45: 0.9469399 | F45: 1 | G45: 0.3697859 | H45: 0 | I45: 1 | J45: 0.7929317 | K45: 0.550356 | L45: 0
A46: 45 | B46: 2.346 | C46: 0 | D46: 0 | E46: 0.3275697 | F46: 0 | G46: 0.9325349 | H46: 1 | I46: 0.632754 | J46: 0.57076 | K46: 0.3325768 | L46: 0.4610827
A47: 46 | B47: 1.764 | C47: 0.3939728 | D47: 0 | E47: 0.6627967 | F47: 0.1881032 | G47: 0.6113792 | H47: 0.4770674 | I47: 0.5070109 | J47: 0.5750343 | K47: 0.6718372 | L47: 0.8968734
A48: 47 | B48: 2.479 | C48: 0.4914771 | D48: 0.7422754 | E48: 0.7502159 | F48: 0.8080292 | G48: 0.1606939 | H48: 0 | I48: 0.448956 | J48: 1 | K48: 0.327496 | L48: 0.3227399
A49: 48 | B49: 1.168 | C49: 0.1207359 | D49: 0 | E49: 0.2635962 | F49: 0.0218254 | G49: 0.8672594 | H49: 0.7054214 | I49: 0.238626 | J49: 0.4118882 | K49: 0.5937987 | L49: 0.7467542
A50: 49 | B50: 1.027 | C50: 0.1523349 | D50: 0 | E50: 0.6522697 | F50: 0.4915343 | G50: 0.3003628 | H50: 0.4527792 | I50: 0.4091339 | J50: 0.7778324 | K50: 0.7267094 | L50: 0.1542463
A51: 50 | B51: 0.796 | C51: 0.2717729 | D51: 0.2310903 | E51: 0.5659772 | F51: 0.270966 | G51: 0.4710952 | H51: 0.1246777 | I51: 0.3944146 | J51: 0 | K51: 0 | L51: 0.6272563
A52: 51 | B52: 1.932 | C52: 0.1734011 | D52: 0 | E52: 0.4125529 | F52: 0.4540203 | G52: 0.7684856 | H52: 0.9767586 | I52: 0.4870354 | J52: 0 | K52: 0.5160033 | L52: 1
A53: 52 | B53: 0.72 | C53: 0.543967 | D53: 1 | E53: 0.8305867 | F53: 1 | G53: 0.7103869 | H53: 0.6982931 | I53: 0.4346853 | J53: 0.5215951 | K53: 0.2739233 | L53: 0.2166053
A54: 53 | B54: 1.673 | C54: 0.4292685 | D54: 0.4824168 | E54: 0.7850456 | F54: 0.8587019 | G54: 0.7464943 | H54: 0.7720405 | I54: 0.7248303 | J54: 0.3959121 | K54: 0.5688924 | L54: 0.5105106
A55: 54 | B55: 0.682 | C55: 0.5729691 | D55: 0.8061245 | E55: 1 | F55: 0.9628929 | G55: 0.4686971 | H55: 0.4947651 | I55: 0.3068752 | J55: 0.6076699 | K55: 0.9132944 | L55: 0.4313907
A56: 55 | B56: 0.923 | C56: 0.2325169 | D56: 0.2401825 | E56: 0.7544222 | F56: 0.4775348 | G56: 0.491221 | H56: 0.6486552 | I56: 0.5129402 | J56: 0 | K56: 0.6361198 | L56: 1
A57: 56 | B57: 1.639 | C57: 0.4285612 | D57: 0.3285111 | E57: 0.5962099 | F57: 1 | G57: 0.6185641 | H57: 1 | I57: 0.4719712 | J57: 0.9154276 | K57: 0.6825845 | L57: 0.2197329
A58: 57 | B58: 1.41 | C58: 0.1359909 | D58: 0.1404422 | E58: 0.5907838 | F58: 0.8245483 | G58: 0.3604345 | H58: 0.5250925 | I58: 0.5412716 | J58: 0.7770908 | K58: 0.2841018 | L58: 0.8957928
A59: 58 | B59: 1.871 | C59: 0 | D59: 0 | E59: 0.6119863 | F59: 0.2241706 | G59: 0.3449166 | H59: 0.3890145 | I59: 0.4384505 | J59: 0.3883306 | K59: 0.3084237 | L59: 0.4657034
A60: 59 | B60: 2.12 | C60: 0.4307809 | D60: 0.2154101 | E60: 0.8218111 | F60: 1 | G60: 0.1494776 | H60: 0 | I60: 0.5445309 | J60: 0.5361162 | K60: 0.5213498 | L60: 0.381105
A61: 60 | B61: 1.055 | C61: 0.4421605 | D61: 0.3279329 | E61: 0.8924904 | F61: 1 | G61: 0.0454889 | H61: 0.0816233 | I61: 0.7607813 | J61: 0.0330703 | K61: 0 | L61: 0.6965214
A62: 61 | B62: 2.025 | C62: 0.2997245 | D62: 0.2088671 | E62: 0.8357402 | F62: 0.8794155 | G62: 0.883199 | H62: 1 | I62: 0.6064535 | J62: 0.7261209 | K62: 0.5000309 | L62: 0.1030709
A63: 62 | B63: 1.479 | C63: 0.2089075 | D63: 0.5229001 | E63: 0.7678344 | F63: 0.7700258 | G63: 0.6827227 | H63: 0.9583973 | I63: 0.3237112 | J63: 0.3014179 | K63: 0.7048306 | L63: 0.4496158
A64: 63 | B64: 1.6 | C64: 0.1533376 | D64: 0.1449707 | E64: 0.4747069 | F64: 0.4860488 | G64: 0.4935265 | H64: 0.4804656 | I64: 0.8076866 | J64: 0.3301335 | K64: 0.5360938 | L64: 0.6454631
A65: 64 | B65: 1.464 | C65: 0.179364 | D65: 0 | E65: 0.4387744 | F65: 0.3217525 | G65: 0.5651577 | H65: 0.6011804 | I65: 0.3816091 | J65: 0.5170593 | K65: 0.3669965 | L65: 0.3528047
A66: 65 | B66: 1.913 | C66: 0.1416593 | D66: 0.1755914 | E66: 0.6998959 | F66: 0.6175153 | G66: 0.441486 | H66: 0.4275846 | I66: 0.4255897 | J66: 0.8645203 | K66: 0.3525785 | L66: 0.3999591
A67: 66 | B67: 2.328 | C67: 0.3649675 | D67: 0.3846346 | E67: 0.756127 | F67: 0.6654845 | G67: 0.7029301 | H67: 0.9624084 | I67: 0.7717119 | J67: 0.3532838 | K67: 0.6914873 | L67: 0.9897082
A68: 67 | B68: 1.721 | C68: 0.0701038 | D68: 0 | E68: 0.6293401 | F68: 0.3554371 | G68: 0.3741969 | H68: 0.6687167 | I68: 0.4861908 | J68: 0.7705476 | K68: 0.8167358 | L68: 0.2370299
A69: 68 | B69: 1.874 | C69: 0.475112 | D69: 0.3128794 | E69: 0.6989787 | F69: 1 | G69: 0.4644609 | H69: 0.5435658 | I69: 0.6773661 | J69: 0.6748037 | K69: 0.5341715 | L69: 0.8568563
A70: 69 | B70: 2.158 | C70: 0.0233027 | D70: 0 | E70: 0.3041101 | F70: 0.2280815 | G70: 0.580453 | H70: 0.5174322 | I70: 0.1531036 | J70: 1 | K70: 0.304165 | L70: 0.2602705
A71: 70 | B71: 0.648 | C71: 0.1735179 | D71: 0.1037615 | E71: 0.7552382 | F71: 0.5179519 | G71: 0.7514798 | H71: 1 | I71: 0.4514478 | J71: 0.4660454 | K71: 0.8145556 | L71: 0.5595031
A72: 71 | B72: 1.914 | C72: 0.5384685 | D72: 0.6324252 | E72: 0.7975758 | F72: 1 | G72: 0.8579625 | H72: 1 | I72: 0.5920497 | J72: 0.0629802 | K72: 0.5444419 | L72: 0.2432425
A73: 72 | B73: 2.409 | C73: 0.1536885 | D73: 0.0088472 | E73: 0.5560517 | F73: 0.8366047 | G73: 0.6972946 | H73: 0.9954106 | I73: 0.8208078 | J73: 0.7513215 | K73: 0.9702686 | L73: 0.152263
A74: 73 | B74: 1.324 | C74: 0.6409475 | D74: 1 | E74: 1 | F74: 1 | G74: 0.5151023 | H74: 0.4549187 | I74: 0.5360106 | J74: 0.5254798 | K74: 0.2498633 | L74: 0.3856199
A75: 74 | B75: 1.471 | C75: 0.3609848 | D75: 0.6703852 | E75: 0.7889439 | F75: 0.964638 | G75: 0.3907603 | H75: 0.3892689 | I75: 0.0933671 | J75: 0.6994787 | K75: 0.3036113 | L75: 0.1438293
A76: 75 | B76: 2.474 | C76: 0.3408212 | D76: 0.4382811 | E76: 0.6608509 | F76: 0.7295527 | G76: 0.2964732 | H76: 0.0478631 | I76: 0.3659945 | J76: 0.3855878 | K76: 0.7705927 | L76: 0.2851649
A77: 76 | B77: 1.247 | C77: 0.3414061 | D77: 1 | E77: 0.6796502 | F77: 0.9202769 | G77: 0.1789523 | H77: 0 | I77: 0.3724975 | J77: 0.289833 | K77: 0.5141878 | L77: 0.6020871
A78: 77 | B78: 2.016 | C78: 0.3792457 | D78: 0.4665691 | E78: 0.6886228 | F78: 0.4311945 | G78: 0.8211812 | H78: 0.7087581 | I78: 0.5023921 | J78: 0.4524405 | K78: 0.5248054 | L78: 0.2205546
A79: 78 | B79: 0.8 | C79: 0.2981618 | D79: 0.2962118 | E79: 0.7382386 | F79: 0.7163922 | G79: 0.3933541 | H79: 0.3582865 | I79: 0.7829183 | J79: 0 | K79: 0.1306426 | L79: 0.2531233
A80: 79 | B80: 2.371 | C80: 0.4824125 | D80: 0.5380578 | E80: 0.9523466 | F80: 0.9735192 | G80: 0.3173527 | H80: 0 | I80: 0.4967823 | J80: 0.1884028 | K80: 0.6301717 | L80: 0.5228078
A81: 80 | B81: 1.161 | C81: 0.2997053 | D81: 0.2166491 | E81: 0.5850093 | F81: 0.176676 | G81: 0.3771335 | H81: 0 | I81: 0.6689174 | J81: 0 | K81: 0.3527446 | L81: 0.5449907
A82: 81 | B82: 1.16 | C82: 0.1307118 | D82: 0 | E82: 0.6253759 | F82: 0.1199998 | G82: 0.5433828 | H82: 0.2474913 | I82: 0.1669011 | J82: 0 | K82: 0.6241628 | L82: 0.3262129
A83: 82 | B83: 1.513 | C83: 0.3981176 | D83: 0.5440797 | E83: 0.7683756 | F83: 1 | G83: 0.3451089 | H83: 0.5313914 | I83: 0.4437681 | J83: 0.9120761 | K83: 0.5288042 | L83: 0.7529482
A84: 83 | B84: 1.963 | C84: 0.376938 | D84: 0.2410823 | E84: 0.7287589 | F84: 0.7481694 | G84: 0.3352113 | H84: 0.4017381 | I84: 0.3317354 | J84: 0.2081775 | K84: 0.0074758 | L84: 0.5761075
A85: 84 | B85: 1.801 | C85: 0 | D85: 0 | E85: 0.4424159 | F85: 0.2543178 | G85: 0.3219101 | H85: 0 | I85: 0.2936448 | J85: 0 | K85: 1 | L85: 0.3731997
A86: 85 | B86: 0.985 | C86: 0.2452934 | D86: 0.5184894 | E86: 0.7720467 | F86: 0.7479903 | G86: 0.6012123 | H86: 0.3625262 | I86: 0.3633544 | J86: 0.3551321 | K86: 0.9923482 | L86: 0.6874958
A87: 86 | B87: 0.973 | C87: 0.5472432 | D87: 0.805883 | E87: 0.939658 | F87: 1 | G87: 0.7669926 | H87: 0.8464333 | I87: 0.8673568 | J87: 0.3316862 | K87: 0.8430898 | L87: 0.120079
A88: 87 | B88: 1.193 | C88: 0.518177 | D88: 0.5267632 | E88: 0.8802938 | F88: 1 | G88: 0.6348247 | H88: 1 | I88: 1 | J88: 0.0498828 | K88: 0.3470441 | L88: 0.2527719
A89: 88 | B89: 1.957 | C89: 0.2931388 | D89: 0.7898685 | E89: 0.8558995 | F89: 1 | G89: 0.4980835 | H89: 0.4822368 | I89: 0.4196427 | J89: 0.4227958 | K89: 0.7541172 | L89: 0.3392072
A90: 89 | B90: 1.261 | C90: 0.6677362 | D90: 0.8249587 | E90: 0.9964486 | F90: 1 | G90: 0.5602518 | H90: 0.5882252 | I90: 0.4691499 | J90: 0.7718758 | K90: 0.6896152 | L90: 0.7239235
A91: 90 | B91: 2.043 | C91: 0.2451339 | D91: 0.7591107 | E91: 0.7364812 | F91: 0.530044 | G91: 0.4273341 | H91: 0.0479527 | I91: 0.5533906 | J91: 0.7293065 | K91: 0.6872024 | L91: 0.780265
A92: 91 | B92: 1.009 | C92: 0 | D92: 0 | E92: 0.5374506 | F92: 0.2986902 | G92: 0.4224758 | H92: 0.9065694 | I92: 0.2074324 | J92: 0.6531695 | K92: 0.5531003 | L92: 0.8701149
A93: 92 | B93: 2.183 | C93: 0.3740422 | D93: 0.0154363 | E93: 0.5189959 | F93: 0.5899022 | G93: 0.574054 | H93: 0.4451615 | I93: 0.5719935 | J93: 0.2616265 | K93: 0.6693226 | L93: 0.406807
A94: 93 | B94: 1.1 | C94: 0.376709 | D94: 0.1480384 | E94: 0.6800749 | F94: 0.775696 | G94: 0.3078552 | H94: 0.0549512 | I94: 0.5882493 | J94: 0.0950282 | K94: 0.3384351 | L94: 0.2630315
A95: 94 | B95: 1.018 | C95: 0.4750057 | D95: 0.7447739 | E95: 0.8978087 | F95: 1 | G95: 0.5705436 | H95: 0.6244614 | I95: 0.4030823 | J95: 0.027813 | K95: 0.539601 | L95: 0.8459721
A96: 95 | B96: 1.109 | C96: 0.5165972 | D96: 0.5047868 | E96: 0.7959904 | F96: 0.5815012 | G96: 0.5446992 | H96: 0.2285262 | I96: 0.2998431 | J96: 0.5364003 | K96: 0.2480521 | L96: 1
A97: 96 | B97: 0.735 | C97: 0.1649284 | D97: 0.0710263 | E97: 0.7315571 | F97: 0.5287041 | G97: 0.4915707 | H97: 0.918489 | I97: 0.6113266 | J97: 0.2798361 | K97: 0.6858785 | L97: 0.7585394
A98: 97 | B98: 2.07 | C98: 0.233111 | D98: 0.1658202 | E98: 0.6684365 | F98: 0.5918851 | G98: 0.5524157 | H98: 0.9228181 | I98: 0.3143398 | J98: 0.5580915 | K98: 0.1804926 | L98: 0.0178622
A99: 98 | B99: 0.835 | C99: 0.5994327 | D99: 0.6518295 | E99: 0.8437781 | F99: 0.9020736 | G99: 0.2631898 | H99: 0 | I99: 0.5367216 | J99: 0.8368613 | K99: 0.2430363 | L99: 0.4285542
A100: 99 | B100: 2.346 | C100: 0.3716097 | D100: 0.4518837 | E100: 0.6839095 | F100: 0.8753515 | G100: 0.2981895 | H100: 0.269835 | I100: 0.6847849 | J100: 0.8521898 | K100: 0.7785379 | L100: 0.3670735
A101: 100 | B101: 2.319 | C101: 0.414436 | D101: 0.2953423 | E101: 0.757671 | F101: 0.6002955 | G101: 0.577346 | H101: 0.2979041 | I101: 0.5005134 | J101: 0.6779335 | K101: 0.5645493 | L101: 0.0614601

Sheet Weighting_function_code
A1: User-defined functions needed for Betti-Verma with sampling weights (back-up copy in case modules inadvertantly get deleted).
A2: These functions for weighted mean, weighted standard deviation and weighted correlation coefficient may be useful in other contexts, too.
A3: They are stored in three VBA modules, accessible by typing Alt+F11, as long as the workbook is saved with the .xlsm file extension.
B5: Weighted mean:
D6: Option Explicit
D8: Function WeightedAvg( _
D9: Values, _
D10: weights) As Double
D12: ' By Jay Petrulis, Aug 19, 2005
D13: ' https://www.mrexcel.com/forum/excel-questions/158039-calculate-weighted-average-vba.html
D15: Dim ValuesArray, _
D16: WeightsArray
D18: If TypeName(Values) = "Range" Then
D19: ValuesArray = Range_to_1D_Array(Values)
D20: Else
D21: If TypeName(Values) Like "*()" Then
D22: If ArrayDimensions(Values) > 1 Then
D23: ValuesArray = Excel.Application.Transpose(Values)
D24: Else
D25: ValuesArray = Values
D26: End If
D27: End If
D28: End If
D30: If TypeName(weights) = "Range" Then
D31: WeightsArray = Range_to_1D_Array(weights)
D32: Else
D33: If TypeName(weights) Like "*()" Then
D34: If ArrayDimensions(weights) > 1 Then
D35: WeightsArray = Excel.Application.Transpose(weights)
D36: Else
D37: WeightsArray = weights
D38: End If
D39: End If
D40: End If
D42: If UBound(ValuesArray) <> UBound(WeightsArray) Then
D43: WeightedAvg = CVErr(xlErrValue)
D44: Exit Function
D45: End If
D47: If UBound(ValuesArray) = 1 Then
D48: WeightedAvg = ValuesArray(1) * IIf(weights, 1, 0)
D49: Exit Function
D50: End If
D52: With Excel.Application
D53: If .Sum(WeightsArray) Then
D54: WeightedAvg = .SumProduct(ValuesArray, WeightsArray) / _
D55: .Sum(WeightsArray)
D56: Else
D57: WeightedAvg = 0
D58: End If
D59: End With
D61: Erase WeightsArray
D62: Erase ValuesArray
D63: End Function
D65: Function Range_to_1D_Array(ByVal rng As Range)
D66: Dim ReturnArray, _
D67: arrTemp, _
D68: i As Long, _
D69: j As Long, _
D70: k As Long
D72: If rng.Cells.Count = 1 Then
D73: ''' converts to numeric values
D74: ''' do not use if you have non-numeric
D75: ''' values in a single cell range
D76: ReDim ReturnArray(1 To 1)
D77: ReturnArray(1) = CDbl(rng)
D78: Else
D79: If rng.Columns.Count > 1 And rng.Rows.Count > 1 Then
D80: arrTemp = rng.Value
D81: ReDim ReturnArray(1 To UBound(arrTemp, 1) * UBound(arrTemp, 2))
D82: k = 0
D83: For i = 1 To UBound(arrTemp, 1)
D84: For j = 1 To UBound(arrTemp, 2)
D85: k = k + 1
D86: ReturnArray(k) = arrTemp(i, j)
D87: Next j
D88: Next i
D89: Erase arrTemp
D90: Else
D91: With Excel.Application
D92: ReturnArray = .Transpose(rng)
D93: If rng.Rows.Count = 1 Then ReturnArray = .Transpose(ReturnArray)
D94: End With
D95: End If
D96: End If
D98: Range_to_1D_Array = ReturnArray
D99: Erase ReturnArray
D100: End Function
D103: Function ArrayDimensions(InputArray As Variant) As Long
D104: Dim N As Long
D106: If Not IsArray(InputArray) Or IsObject(InputArray) Then
D107: N = 0
D108: Exit Function
D109: Else
D110: N = 1
D111: End If
D113: On Error Resume Next
D115: Do
D116: N = N + 1
D117: Loop While (LBound(InputArray, N) <= UBound(InputArray, N))
D119: ArrayDimensions = N - 1
D120: End Function
B122: Weighted standard deviation:
D123: Option Explicit
D125: Function WeightedSD2(vals As Range, weights As Range)
D127: ' Adapted by Aldo Benini, 21 Aug 2019
D128: ' from https://stats.stackexchange.com/questions/6534/how-do-i-calculate-a-weighted-standard-deviation-in-excel
D129: ' posted by "gung" (psydonym), 12 March 2015
D131: ' The function works only if both vals and weights are ranges with 1 column and the same number of rows.
D132: ' The results is correct only if all weights > 0.
D134: Dim i, xV, xW, y As Integer
D135: Dim wi, xi, WgtAvg, N
D136: Dim sumProd, SUMwi
D138: sumProd = 0
D139: SUMwi = 0
D140: N = vals.Count ' number of values to determine W Standard Deviation
D141: y = vals.Row - 1 ' Row number of the values and weights
D143: WgtAvg = WorksheetFunction.SumProduct(vals, weights) / WorksheetFunction.Sum(weights)
D145: For i = 1 To N ' step through the elements, calculating the sum of values and the sumproduct
D146: wi = weights.Cells(i + y, 1).Value ' (i+y, xW) is the cell containing the weight element
D147: SUMwi = SUMwi + wi
D148: xi = vals.Cells(i + y, 1).Value ' (i+y, xV) is the cell containing the value element
D149: sumProd = sumProd + wi * (xi - WgtAvg) ^ 2
D150: Next i
D152: WeightedSD2 = (sumProd / (SUMwi * N / (N - 1))) ^ (1 / 2) ' output of weighted standard deviation
D154: End Function
B156: Weighted correlation coefficient:
D157: Function WtCorrel(rXi As Excel.Range, _
D158: rYi As Excel.Range, _
D159: rWi As Excel.Range) As Double
D161: ' shg (pseudonym) (2008). Calculate Weighted Correlation Coefficient [Excel VBA function].
D162: ' https://www.ozgrid.com/forum/forum/help-forums/excel-general/72015-calculate-weighted-correlation-coefficient.
D164: Dim ad() As Double
D165: Dim sW As Double ' sum(Wi)
D166: Dim xW As Double
D167: Dim Yw As Double
D168: Dim vWi As Variant
D169: Dim vXiXw As Variant ' Xi - Xw
D170: Dim vYiYw As Variant ' Yi - Yw
D172: Dim i As Long
D173: Dim N As Long
D175: ReDim ad(1 To 3, 1 To rXi.Rows.Count)
D176: For i = 1 To rXi.Rows.Count
D177: If IsNumeric(rXi(i).Value) And IsNumeric(rYi(i).Value) And IsNumeric(rWi(i).Value) Then
D178: N = N + 1
D179: ad(1, N) = rXi(i).Value
D180: ad(2, N) = rYi(i).Value
D181: ad(3, N) = rWi(i).Value
D182: End If
D183: Next i
D184: ReDim Preserve ad(1 To 3, 1 To N)
D186: With Application.WorksheetFunction
D187: vXiXw = .Index(ad, 1, 0)
D188: vYiYw = .Index(ad, 2, 0)
D189: vWi = .Index(ad, 3, 0)
D191: sW = .Sum(vWi)
D192: xW = .SumProduct(vWi, vXiXw) / sW
D193: Yw = .SumProduct(vWi, vYiYw) / sW
D195: For i = 1 To N
D196: vXiXw(i) = vXiXw(i) - xW
D197: vYiYw(i) = vYiYw(i) - Yw
D198: Next i
D200: WtCorrel = .SumProduct(vWi, vXiXw, vYiYw) _
D201: / Sqr(.SumProduct(vWi, vXiXw, vXiXw) * .SumProduct(vWi, vYiYw, vYiYw))
D202: End With
D203: End Function

Sheet MSNA_Setup
A1: Practical example with real data

Sheet MSNA_Data
A1: Stratum | B1: Union | C1: HH head gender | D1: Sample households | E1: Sampl_w | F1: ls1_food | G1: ls2_livelih | H1: ls3_shelter | I1: ls4_wash | J1: ls5_health | K1: ls6_educ
A2: 1 | B2: Baharchara | C2: Male | D2: 204 | E2: 134.0184 | F2: 0.6254596 | G2: 0.7536765 | H2: 0.5782232 | I2: 0.2352636 | J2: 0.3235294 | K2: 0.4733662
A3: 2 | B3: Baharchara | C3: Female | D3: 51 | E3: 33.5046 | F3: 0.6616772 | G3: 0.7892157 | H3: 0.5397514 | I3: 0.2338551 | J3: 0.4117647 | K3: 0.5107301
A4: 3 | B4: Nhilla | C4: Male | D4: 221 | E4: 240.0456 | F4: 0.6073449 | G4: 0.7251131 | H4: 0.5145031 | I4: 0.2882217 | J4: 0.4615385 | K4: 0.4656995
A5: 4 | B5: Nhilla | C5: Female | D5: 43 | E5: 46.70571 | F5: 0.7012043 | G5: 0.7209302 | H5: 0.5469892 | I5: 0.2651283 | J5: 0.6046512 | K5: 0.5344411
A6: 5 | B6: Sabrang | C6: Male | D6: 219 | E6: 287.8266 | F6: 0.5931385 | G6: 0.7146119 | H6: 0.4496429 | I6: 0.2039214 | J6: 0.4611872 | K6: 0.4917546
A7: 6 | B7: Sabrang | C7: Female | D7: 44 | E7: 57.82819 | F7: 0.6076502 | G7: 0.7045454 | H7: 0.4720873 | I7: 0.1635585 | J7: 0.5227273 | K7: 0.5009078
A8: 7 | B8: Teknaf | C8: Male | D8: 229 | E8: 252.7149 | F8: 0.6174945 | G8: 0.720524 | H8: 0.4910543 | I8: 0.2089337 | J8: 0.3930131 | K8: 0.5252579
A9: 8 | B9: Teknaf | C9: Female | D9: 37 | E9: 40.83167 | F9: 0.6389961 | G9: 0.7094595 | H9: 0.5212886 | I9: 0.180011 | J9: 0.4054054 | K9: 0.642812
A10: 9 | B10: Teknaf Paurashava | C10: Male | D10: 218 | E10: 138.6694 | F10: 0.5953473 | G10: 0.6926606 | H10: 0.3502756 | I10: 0.2285165 | J10: 0.2477064 | K10: 0.5237595
A11: 10 | B11: Teknaf Paurashava | C11: Female | D11: 41 | E11: 26.08002 | F11: 0.6547256 | G11: 0.7378049 | H11: 0.4665557 | I11: 0.3514472 | J11: 0.3414634 | K11: 0.5212602
A12: 11 | B12: Whykong | C12: Male | D12: 215 | E12: 252.2675 | F12: 0.6417982 | G12: 0.7755814 | H12: 0.5642688 | I12: 0.2888467 | J12: 0.4651163 | K12: 0.5027096
A13: 12 | B13: Whykong | C13: Female | D13: 47 | E13: 55.14685 | F13: 0.6785714 | G13: 0.7765958 | H13: 0.6268375 | I13: 0.3022135 | J13: 0.4680851 | K13: 0.5149764
A14: 13 | B14: Haldia Palong | C14: Male | D14: 228 | E14: 274.8619 | F14: 0.6293859 | G14: 0.7039474 | H14: 0.5224252 | I14: 0.1869722 | J14: 0.4210526 | K14: 0.4696447
A15: 14 | B15: Haldia Palong | C15: Female | D15: 31 | E15: 37.37157 | F15: 0.6382489 | G15: 0.75 | H15: 0.574481 | I15: 0.192917 | J15: 0.4193548 | K15: 0.4591921
A16: 15 | B16: Jalia Palong | C16: Male | D16: 218 | E16: 242.7385 | F16: 0.6407274 | G16: 0.7385321 | H16: 0.4600671 | I16: 0.2176708 | J16: 0.3807339 | K16: 0.4641624
A17: 16 | B17: Jalia Palong | C17: Female | D17: 47 | E17: 52.33353 | F17: 0.6727774 | G17: 0.7553192 | H17: 0.5065615 | I17: 0.2519721 | J17: 0.4042553 | K17: 0.4268756
A18: 17 | B18: Palong Khali | C18: Male | D18: 227 | E18: 164.7389 | F18: 0.6469477 | G18: 0.774229 | H18: 0.5400153 | I18: 0.2031152 | J18: 0.4537445 | K18: 0.505024
A19: 18 | B19: Palong Khali | C19: Female | D19: 40 | E19: 29.02888 | F19: 0.6857143 | G19: 0.78125 | H19: 0.617238 | I19: 0.2911724 | J19: 0.425 | K19: 0.5406061
A20: 19 | B20: Raja Palong | C20: Male | D20: 233 | E20: 325.454 | F20: 0.6195394 | G20: 0.6974249 | H20: 0.4873694 | I20: 0.1811328 | J20: 0.3862661 | K20: 0.4634819
A21: 20 | B21: Raja Palong | C21: Female | D21: 30 | E21: 41.90394 | F21: 0.6907738 | G21: 0.7166666 | H21: 0.4588873 | I21: 0.1856232 | J21: 0.2 | K21: 0.4717965
A22: 21 | B22: Ratna Palong | C22: Male | D22: 211 | E22: 120.1631 | F22: 0.6199433 | G22: 0.7168247 | H22: 0.4843278 | I22: 0.1782836 | J22: 0.4028436 | K22: 0.4619971
A23: 22 | B23: Ratna Palong | C23: Female | D23: 47 | E23: 26.76619 | F23: 0.6708776 | G23: 0.6968085 | H23: 0.4886692 | I23: 0.1935139 | J23: 0.4893617 | K23: 0.4270847

Sheet MSNA_BV_weights
A1: Work flow to obtain Betti-Verma weights for the MSNA data (and then use them to obtain scores and statistics)
C2: Continuous indicators (normalized to [0, 1]; higher values = less desirable)
A3: 1. Step: | B3: Correlation table: | C3: ls1_food | D3: ls2_livelih | E3: ls3_shelter | F3: ls4_wash | G3: ls5_health | H3: ls6_educ
A4: Verify all indicators have the same substantive direction; else reverse the incorrectly coded ones [= replace x by 1 -x] Calculate the correlation table (use function CORREL) | B4: ls1_food | C4: =WtCorrel(INDIRECT($B4),INDIRECT(C$3), Sampl_w) -> 1 | D4: 0.5387145865 | E4: 0.5507466235 | F4: 0.2498602146 | G4: 0.1210503408 | H4: 0.04148939735
B5: ls2_livelih | C5: 0.5387145865 | D5: 1 | E5: 0.6613316432 | F5: 0.5831189729 | G5: 0.2597044021 | H5: 0.1405460568
B6: ls3_shelter | C6: 0.5507466235 | D6: 0.6613316432 | E6: 1 | F6: 0.3724430721 | G6: 0.4577721908 | H6: 0.007309388209
B7: ls4_wash | C7: 0.2498602146 | D7: 0.5831189729 | E7: 0.3724430721 | F7: 1 | G7: 0.2155867485 | H7: 0.1337567947
B8: ls5_health | C8: 0.1210503408 | D8: 0.2597044021 | E8: 0.4577721908 | F8: 0.2155867485 | G8: 1 | H8: 0.0311795706
B9: ls6_educ | C9: 0.04148939735 | D9: 0.1405460568 | E9: 0.007309388209 | F9: 0.1337567947 | G9: 0.0311795706 | H9: 1
B11: Statistics:
B12: Mean | C12: =WeightedAvg(INDIRECT(C$3),Sampl_w) -> 0.6277642486 | D12: 0.7284882105 | E12: 0.5010890631 | F12: 0.2219693776 | G12: 0.412736676 | H12: 0.4880055438
B13: SD | C13: =WeightedSD2(INDIRECT(C$3),Sampl_w) -> 0.02432486167 | D13: 0.02732862418 | E13: 0.05159157441 | F13: 0.04144970889 | G13: 0.06290008066 | H13: 0.03149048246
A14: Calculate the needed statistics: | B14: C.o.V. | C14: =C13/C12 -> 0.03874840233 | D14: =D13/D12 -> 0.03751416122 | E14: 0.1029588913 | F14: 0.1867361585 | G14: 0.1523976044 | H14: 0.06452894412 | I14: C.o.V. =
I15: Coefficient of variation =
I16: Standard deviation / Mean
B17: BETTI-VERMA FORMULA ELEMENTS, RAW (= not yet normalized)
A18: Step 2: | B18: Betti-Verma first weight:
A19: Determine the values of the first Betti-Verma double-weighting components 2.a.: Decide, on substantive grounds, on the analytic option: Information value, user-defined, equal 2.b.: Set or calculate the value for each indicator. No normalization required at this point. | B19: Three analyic choices:
B20: Information value (here: = coefficient of variation) | C20: =C14 -> 0.03874840233 | D20: =D14 -> 0.03751416122 | E20: 0.1029588913 | F20: 0.1867361585 | G20: 0.1523976044 | H20: 0.06452894412 | I20: Betti-Verma default option
B22: User-defined | C22: 2 | D22: 2 | E22: 1 | F22: 1 | G22: 1 | H22: 1 | I22: Generally not recommended. Second-guesses the data without reference to the correlation pattern. May be permissible if there is a consensual and compelling hierarchy of indicators , but for such situations other approaches may be more suitable (e.g., lexicographic ranking). For the calculation of simple weighted scores (not BV), we name this range "UserDef_first".
B24: Equal | C24: 1 | D24: 1 | E24: 1 | F24: 1 | G24: 1 | H24: 1 | I24: Recommended for simplicity and for avoiding precarious assumption about the greater or lesser importance of some indicators
A27: Step 3: Calculate the second BV weighting component | B27: Betti-Verma's second weight: | C27: =1 /((1 + SUM(IF(C$4:C$9<0, C$4:C$9))) * SUM(IF(C$4:C$9>0, C$4:C$9))) -> 0.3997024355 | D27: =1 /((1 + SUM(IF(D$4:D$9<0, D$4:D$9))) * SUM(IF(D$4:D$9>0, D$4:D$9))) -> 0.3141280016 | E27: =1 /((1 + SUM(IF(E$4:E$9<0, E$4:E$9))) * SUM(IF(E$4:E$9>0, E$4:E$9))) -> 0.3279115436 | F27: =1 /((1 + SUM(IF(F$4:F$9<0, F$4:F$9))) * SUM(IF(F$4:F$9>0, F$4:F$9))) -> 0.3914253114 | G27: =1 /((1 + SUM(IF(G$4:G$9<0, G$4:G$9))) * SUM(IF(G$4:G$9>0, G$4:G$9))) -> 0.479548859 | H27: =1 /((1 + SUM(IF(H$4:H$9<0, H$4:H$9))) * SUM(IF(H$4:H$9>0, H$4:H$9))) -> 0.7383990816 | I27: The formula implements this algebra:
B28: Formula (enter as array formula!): | C28: {=1 /((1 + SUM(IF(R4C:R9C<0, R4C:R9C))) * SUM(IF(R4C:R9C>0, R4C:R9C)))} | N28: Choice of rhoH = 0
A30: Step 4: Multiply: First x second weight x (second w. is > 0) | B30: Combine first and second weights: | C30: Exclude indicators whose sum of correlation coefficients with the other indicators is negative. Most likely, they relate to a different concept.
B31: Three analyic choices from first weight:
A32: The assigment of zero weights to indicators with negative second weights is a safeguard. | B32: Information value | C32: =C20*C$27*(SUM(C$4:C$9) - 1 > 0) -> 0.01548783078 | D32: 0.0117842485 | E32: 0.03376140899 | F32: 0.07309325901 | G32: 0.07308209729 | H32: 0.04764811308 | I32: Inclusion is modeled through the indicator (red) in this formula:
A33: It will rarely come into play. | I33: =R[-12]C*R27C*(sum(R4C:R9C) - 1 > 0)
B34: User-defined | C34: =C22*C$27*(SUM(C$4:C$9) - 1 > 0) -> 0.7994048709 | D34: 0.6282560032 | E34: 0.3279115436 | F34: 0.3914253114 | G34: 0.479548859 | H34: 0.7383990816
B36: Equal | C36: =C24*C$27*(SUM(C$4:C$9) - 1 > 0) -> 0.3997024355 | D36: 0.3141280016 | E36: 0.3279115436 | F36: 0.3914253114 | G36: 0.479548859 | H36: 0.7383990816
B38: BETTI-VERMA FORMULA ELEMENTS, NORMALIZED (= summing to 1)
A39: Step 5: Normalize the weights such that they sum to 1 over all indicators | B39: Three analyic choices from first weight:
B40: Information value | C40: =C32 / SUM($C32:$H32) -> 0.06077068064 | D40: 0.04623867681 | E40: 0.1324719925 | F40: 0.2868011126 | G40: 0.2867573166 | H40: 0.1869602208
B42: User-defined | C42: =C34 / SUM($C34:$H34) -> 0.2375684333 | D42: 0.1867061358 | E42: 0.09744928321 | F42: 0.1163244075 | G42: 0.142513106 | H42: 0.2194386341
B44: Equal | C44: =C36 / SUM($C36:$H36) -> 0.1507676583 | D44: 0.1184890033 | E44: 0.1236881519 | F44: 0.1476455292 | G44: 0.1808857092 | H44: 0.2785239482
A46: Step 6: Use the weights to calculate the Betti-Verma score for every observed unit (e.g., household), as in sheet "Betti_Verma_scores" | B46: Review weights critically on substantive grounds: 1. Indicators with very high weights may not fit (very low pos. or some neg. correl. with all others) 2. Indicators with very low weights: Check if they are very highly correl. with others --> high redundancy. If corr. coef. = +1, one or the other is implied (e.g. "toilet use" implies "toilet access"). Eliminate indicators with excessive weights and implied ones from index; recalculate.
A48: Step 7: Calculate the frequency table and distribution statistics (mean, st.dev.) of the BV scores, as in sheet "Indices_compared". | B48: Typically, one decides on one option only (information value, or user-defined, or equal). If for any reason you work with several BV options or non-BV indices, calculate (Pearson-moment) correlations and inspect scatterplots, compare weights and aggregation methods, even check the association of their scores with external variables (e.g., groups of affected people, gender of household head, etc.) before settling on the best candidate.
A50: Step 8: Review the weights and the score statistics for plausibility. Use the final index in the further analysis of the survey / assessment, etc. data. | B50: In purely mechanical terms, the results for weights and scores are correct. However, two major objections must be raised: 1. Aggregation to subsamples before calculations loses a great deal of information. The differences in the mean scores are much smaller (than in a household-level analysis), and the correlation among the five measures are almost perfect - which implies that Betti-Verma was not needed (for this set of 22 aggregate observations!). 2. Even if this analysis were done with the 2,000+ household records, the sectoral indicators denote gaps, not achievements. It is doubtful that they have natural zero points. If we believe that "zero gaps do not exist in affected households", then the coefficients of variation are meaningless, and the "information value" option is unsound.

Sheet MSNA_BV_scores
A1: Calculation of five variants of the same index, incl. three Betti-Verma options
L2: Additive aggregation | N2: Betti-Verma, by type of first weight
A3: Static copy of the data (to keep the Betti-Verma stuff out of the sheet "MSNA_Data", not needed in "real life"): | L3: Unweighted (arithmetic mean) | M3: Weighted mean (user defined weights) | N3: Information value | O3: User-defined | P3: Equal
A4: Stratum | B4: Union | C4: HH head gender | D4: Sample households | E4: Sampl_w | F4: ls1_food | G4: ls2_livelih | H4: ls3_shelter | I4: ls4_wash | J4: ls5_health | K4: ls6_educ | L4: MSNA_Index1a | M4: MSNA_Index1b | N4: MSNA_Index2a | O4: MSNA_Index2b | P4: MSNA_Index2c
A5: 1 | B5: Baharchara | C5: Male | D5: 204 | E5: 134.0184 | F5: 0.6254596 | G5: 0.7536765 | H5: 0.5782232 | I5: 0.2352636 | J5: 0.3235294 | K5: 0.4733662 | L5: =AVERAGE($F5:$K5) -> 0.4982530833 | M5: =SUMPRODUCT($F5:$K5, MSNA_UserDef_first) / SUM(MSNA_UserDef_first) -> 0.546081825 | N5: =SUMPRODUCT($F5:$K5, MSNA_InfoValue_Cont) -> 0.3982059232 | O5: =SUMPRODUCT($F5:$K5, MSNA_UserDef_Cont) -> 0.5230018315 | P5: =SUMPRODUCT($F5:$K5, MSNA_Equal_Cont) -> 0.4802221022
A6: 2 | B6: Baharchara | C6: Female | D6: 51 | E6: 33.5046 | F6: 0.6616772 | G6: 0.7892157 | H6: 0.5397514 | I6: 0.2338551 | J6: 0.4117647 | K6: 0.5107301 | L6: =AVERAGE($F6:$K6) -> 0.5244990333 | M6: 0.5747358875 | N6: 0.4288374625 | O6: 0.5551022543 | P6: 0.5112943305
A7: 3 | B7: Nhilla | C7: Male | D7: 221 | E7: 240.0456 | F7: 0.6073449 | G7: 0.7251131 | H7: 0.5145031 | I7: 0.2882217 | J7: 0.4615385 | K7: 0.4656995 | L7: 0.5104034667 | M7: 0.54935985 | N7: 0.4406734114 | O7: 0.5313019655 | P7: 0.4968726621
A8: 4 | B8: Nhilla | C8: Female | D8: 43 | E8: 46.70571 | F8: 0.7012043 | G8: 0.7209302 | H8: 0.5469892 | I8: 0.2651283 | J8: 0.6046512 | K8: 0.5344411 | L8: 0.56222405 | M8: 0.59943485 | N8: 0.4977547434 | O8: 0.5887784423 | P8: 0.5561697289
A9: 5 | B9: Sabrang | C9: Male | D9: 219 | E9: 287.8266 | F9: 0.5931385 | G9: 0.7146119 | H9: 0.4496429 | I9: 0.2039214 | J9: 0.4611872 | K9: 0.4917546 | L9: 0.4857094167 | M9: 0.5277508625 | N9: 0.4113254669 | O9: 0.515507003 | P9: 0.4802109432
A10: 6 | B10: Sabrang | C10: Female | D10: 44 | E10: 57.82819 | F10: 0.6076502 | G10: 0.7045454 | H10: 0.4720873 | I10: 0.1635585 | J10: 0.5227273 | K10: 0.5009078 | L10: 0.4952460833 | M10: 0.5354590125 | N10: 0.4224973791 | O10: 0.5253458843 | P10: 0.4917038834
A11: 7 | B11: Teknaf | C11: Male | D11: 229 | E11: 252.7149 | F11: 0.6174945 | G11: 0.720524 | H11: 0.4910543 | I11: 0.2089337 | J11: 0.3930131 | K11: 0.5252579 | L11: 0.4927129167 | M11: 0.536787 | N11: 0.4067167115 | O11: 0.5246518249 | P11: 0.4874454534
A12: 8 | B12: Teknaf | C12: Female | D12: 37 | E12: 40.83167 | F12: 0.6389961 | G12: 0.7094595 | H12: 0.5212886 | I12: 0.180011 | J12: 0.4054054 | K12: 0.642812 | L12: 0.5163287667 | M12: 0.555803525 | N12: 0.4287534292 | O12: 0.5548379875 | P12: 0.523828717
A13: 9 | B13: Teknaf Paurashava | C13: Male | D13: 218 | E13: 138.6694 | F13: 0.5953473 | G13: 0.6926606 | H13: 0.3502756 | I13: 0.2285165 | J13: 0.2477064 | K13: 0.5237595 | L13: 0.4397109833 | M13: 0.490784225 | N13: 0.3491016777 | O13: 0.4817103397 | P13: 0.4395822753
A14: 10 | B14: Teknaf Paurashava | C14: Female | D14: 41 | E14: 26.08002 | F14: 0.6547256 | G14: 0.7378049 | H14: 0.4665557 | I14: 0.3514472 | J14: 0.3414634 | K14: 0.5212602 | L14: 0.5122095 | M14: 0.5582234375 | N14: 0.4318763042 | O14: 0.5426898788 | P14: 0.5026795311
A15: 11 | B15: Whykong | C15: Male | D15: 215 | E15: 252.2675 | F15: 0.6417982 | G15: 0.7755814 | H15: 0.5642688 | I15: 0.2888467 | J15: 0.4651163 | K15: 0.5027096 | L15: 0.5397201667 | M15: 0.581962575 | N15: 0.4598179382 | O15: 0.562463387 | P15: 0.525250122
A16: 12 | B16: Whykong | C16: Female | D16: 47 | E16: 55.14685 | F16: 0.6785714 | G16: 0.7765958 | H16: 0.6268375 | I16: 0.3022135 | J16: 0.4680851 | K16: 0.5149764 | L16: 0.5612132833 | M16: 0.6028058625 | N16: 0.4773665174 | O16: 0.582155996 | P16: 0.5445806927
A17: 13 | B17: Haldia Palong | C17: Male | D17: 228 | E17: 274.8619 | F17: 0.6293859 | G17: 0.7039474 | H17: 0.5224252 | I17: 0.1869722 | J17: 0.4210526 | K17: 0.4696447 | L17: 0.4889046667 | M17: 0.5333451625 | N17: 0.4021731386 | O17: 0.516676618 | P17: 0.4774941752
A18: 14 | B18: Haldia Palong | C18: Female | D18: 31 | E18: 37.37157 | F18: 0.6382489 | G18: 0.75 | H18: 0.574481 | I18: 0.192917 | J18: 0.4193548 | K18: 0.4591921 | L18: 0.5056989667 | M18: 0.5528053375 | N18: 0.4110009942 | O18: 0.5306091528 | P18: 0.4883851573
A19: 15 | B19: Jalia Palong | C19: Male | D19: 218 | E19: 242.7385 | F19: 0.6407274 | G19: 0.7385321 | H19: 0.4600671 | I19: 0.2176708 | J19: 0.3807339 | K19: 0.4641624 | L19: 0.48364895 | M19: 0.53514415 | N19: 0.3924185566 | O19: 0.5163734488 | P19: 0.4713015377
A20: 16 | B20: Jalia Palong | C20: Female | D20: 47 | E20: 52.33353 | F20: 0.6727774 | G20: 0.7553192 | H20: 0.5065615 | I20: 0.2519721 | J20: 0.4042553 | K20: 0.4268756 | L20: 0.5029601833 | M20: 0.5557322125 | N20: 0.4109131122 | O20: 0.5308126394 | P20: 0.4828073862
A21: 17 | B21: Palong Khali | C21: Male | D21: 227 | E21: 164.7389 | F21: 0.6469477 | G21: 0.774229 | H21: 0.5400153 | I21: 0.2031152 | J21: 0.4537445 | K21: 0.505024 | L21: 0.5205126167 | M21: 0.56803155 | N21: 0.4294392985 | O21: 0.5499853303 | P21: 0.508796132
A22: 18 | B22: Palong Khali | C22: Female | D22: 40 | E22: 29.02888 | F22: 0.6857143 | G22: 0.78125 | H22: 0.617238 | I22: 0.2911724 | J22: 0.425 | K22: 0.5406061 | L22: 0.5568301333 | M22: 0.6009931375 | N22: 0.4660143024 | O22: 0.5819860324 | P22: 0.5427365754
A23: 19 | B23: Raja Palong | C23: Male | D23: 233 | E23: 325.454 | F23: 0.6195394 | G23: 0.6974249 | H23: 0.4873694 | I23: 0.1811328 | J23: 0.3862661 | K23: 0.4634819 | L23: 0.47253575 | M23: 0.51902235 | N23: 0.3838270284 | O23: 0.5027142938 | P23: 0.4620297804
A24: 20 | B24: Raja Palong | C24: Female | D24: 30 | E24: 41.90394 | F24: 0.6907738 | G24: 0.7166666 | H24: 0.4588873 | I24: 0.1856232 | J24: 0.2 | K24: 0.4717965 | L24: 0.4539579 | M24: 0.516398475 | N24: 0.3347018057 | O24: 0.496255849 | P24: 0.4408125828
A25: 21 | B25: Ratna Palong | C25: Male | D25: 211 | E25: 120.1631 | F25: 0.6199433 | G25: 0.7168247 | H25: 0.4843278 | I25: 0.1782836 | J25: 0.4028436 | K25: 0.4619971 | L25: 0.4773700167 | M25: 0.5251235125 | N25: 0.388004635 | O25: 0.5078411647 | P25: 0.4661775374
A26: 22 | B26: Ratna Palong | C26: Female | D26: 47 | E26: 26.76619 | F26: 0.6708776 | G26: 0.6968085 | H26: 0.4886692 | I26: 0.1935139 | J26: 0.4893617 | K26: 0.4270847 | L26: 0.4943859333 | M26: 0.5417502125 | N26: 0.4134000736 | O26: 0.5230679549 | P26: 0.4801966968

Sheet MSNA_Indices_compared
A1: Comparison of five indices in the MSNA example:
A2: Index | C2: Mean | D2: SD | E2: Information value (CoV) | F2: Correlations:
E3: = SD / Mean | F3: MSNA_Index1a | G3: MSNA_Index1b | H3: MSNA_Index2a | I3: MSNA_Index2b | J3: MSNA_Index2c
A4: MSNA_Index1a | B4: Unweighted (arithmetic mean) | C4: =WeightedAvg(INDIRECT($A4),Sampl_w) -> 0.4966755199 | D4: =WeightedSD2(INDIRECT($A4),Sampl_w) -> 0.02646373136 | E4: =D4/C4 -> 0.05328173082 | F4: =WtCorrel(INDIRECT($A4),INDIRECT(F$3),Sampl_w) -> 1 | G4: 0.9885386152 | H4: 0.9616038009 | I4: 0.988471436 | J4: 0.9835271449
A5: MSNA_Index1b | B5: Weighted mean (user defined weights) | C5: =WeightedAvg(INDIRECT($A5),Sampl_w) -> 0.5420381973 | D5: =WeightedSD2(INDIRECT($A5),Sampl_w) -> 0.02465843801 | E5: =D5/C5 -> 0.04549206704 | F5: 0.9885386152 | G5: 1 | H5: 0.9151938507 | I5: 0.9868371164 | J5: 0.959264674
A6: MSNA_Index2a | B6: Betti-Verma: Information value | C6: =WeightedAvg(INDIRECT($A6),Sampl_w) -> 0.4114682086 | D6: =WeightedSD2(INDIRECT($A6),Sampl_w) -> 0.02953493982 | E6: 0.07177939683 | F6: 0.9616038009 | G6: 0.9151938507 | H6: 1 | I6: 0.9360262822 | J6: 0.9666825172
A7: MSNA_Index2b | B7: Betti-Verma: User-defined first weights | C7: =WeightedAvg(INDIRECT($A7),Sampl_w) -> 0.5257090698 | D7: =WeightedSD2(INDIRECT($A7),Sampl_w) -> 0.02295156457 | E7: 0.04365830054 | F7: 0.988471436 | G7: 0.9868371164 | H7: 0.9360262822 | I7: 1 | J7: 0.988362933
A8: MSNA_Index2c | B8: Betti-Verma: Equal first weights | C8: =WeightedAvg(INDIRECT($A8),Sampl_w) -> 0.4862953512 | D8: =WeightedSD2(INDIRECT($A8),Sampl_w) -> 0.02453555775 | E8: 0.05045402489 | F8: 0.9835271449 | G8: 0.959264674 | H8: 0.9666825172 | I8: 0.988362933 | J8: 1
C10: Distributions: | E10: Index values | F10: Frequencies of occurrence
E11: Upper limit of interval | F11: MSNA_Index1a | G11: MSNA_Index1b | H11: MSNA_Index2a | I11: MSNA_Index2b | J11: MSNA_Index2c
E12: 0 | F12: =FREQUENCY(INDIRECT(F$11), $E$12:$E$21) / 22 -> 0 | G12: =FREQUENCY(INDIRECT(G$11), $E$12:$E$21) / 22 -> 0 | H12: =FREQUENCY(INDIRECT(H$11), $E$12:$E$21) / 22 -> 0 | I12: =FREQUENCY(INDIRECT(I$11), $E$12:$E$21) / 22 -> 0 | J12: =FREQUENCY(INDIRECT(J$11), $E$12:$E$21) / 22 -> 0 | L12: FREQUENCY is a multi-cell array function and has to be entered by pressing Shift-Ctrl-Enter.
E13: 0.1 | F13: 0 | G13: 0 | H13: 0 | I13: 0 | J13: 0 | L13: The intervals (which Excel calls "bins") are passed to the function by their upper bounds. For n bounds, select the first n-1, and select all n target cells.
E14: 0.2 | F14: 0 | G14: 0 | H14: 0 | I14: 0 | J14: 0 | M14: 1. Select the range R12C6:R22C6 (11 cells); type "=FREQUENCY(" in the formula bar (without the inverted quotes).
E15: 0.3 | F15: 0 | G15: 0 | H15: 0 | I15: 0 | J15: 0 | M15: 2. The final formula is "=FREQUENCY(INDIRECT(R11C), R12C5:R21C5) / 100", where
E16: 0.4 | F16: 0 | G16: 0 | H16: 0.2727272727 | I16: 0 | J16: 0 | N16: INDIRECT(R11C) references the data range for the particular index, and
E17: 0.5 | F17: 0.5 | G17: 0.04545454545 | H17: 0.7272727273 | I17: 0.09090909091 | J17: 0.6363636364 | N17: R12C5:R21C is the bins_range (the upper bounds) with only 10 cells.
E18: 0.6 | F18: 0.5 | G18: 0.8636363636 | H18: 0 | I18: 0.9090909091 | J18: 0.3636363636 | N18: "/ 100" is ok here (we have 100 observations in the data table), but this has to be adjusted to your actual sample size.
E19: 0.7 | F19: 0 | G19: 0.09090909091 | H19: 0 | I19: 0 | J19: 0
E20: 0.8 | F20: 0 | G20: 0 | H20: 0 | I20: 0 | J20: 0
E21: 0.9 | F21: 0 | G21: 0 | H21: 0 | I21: 0 | J21: 0
E22: 1 | F22: 0 | G22: 0 | H22: 0 | I22: 0 | J22: 0
E23: Total | F23: =SUM(F12:F22) -> 1 | G23: =SUM(G12:G22) -> 1 | H23: 1 | I23: 1 | J23: 1

Sheet MSNA_group_diff
A1: Index means, by Union and HH head gender, for the Betti-Verma information value option:
A3: Union | B3: Gender HH head | D3: Total | F3: Difference
B4: Male | C4: Female | F4: Female-Male
A5: Baharchara | B5: =SUMPRODUCT(MSNA_Index2a, Sampl_w, --(Union=$A5),--(HH_head_gender=B$4)) / SUMPRODUCT(Sampl_w, --(Union=$A5),--(HH_head_gender=B$4)) -> 0.3982059232 | C5: 0.4288374625 | D5: =SUMPRODUCT(MSNA_Index2a, Sampl_w, --(Union=$A5)) / SUMPRODUCT(Sampl_w, --(Union=$A5)) -> 0.4043322311 | F5: =C5-B5 -> 0.03063153927
A6: Nhilla | B6: 0.4406734114 | C6: 0.4977547434 | D6: 0.4499707504 | F6: =C6-B6 -> 0.05708133198
A7: Sabrang | B7: 0.4113254669 | C7: 0.4224973791 | D7: 0.4131945324 | F7: 0.01117191224
A8: Teknaf | B8: 0.4067167115 | C8: 0.4287534292 | D8: 0.4097819696 | F8: 0.02203671764
A9: Teknaf Paurashava | B9: 0.3491016777 | C9: 0.4318763042 | D9: 0.362204995 | F9: 0.08277462653
A10: Whykong | B10: 0.4598179382 | C10: 0.4773665174 | D10: 0.4629659659 | F10: 0.01754857914
A11: Haldia Palong | B11: 0.4021731386 | C11: 0.4110009942 | D11: 0.4032297544 | F11: 0.008827855656
A12: Jalia Palong | B12: 0.3924185566 | C12: 0.4109131122 | D12: 0.3956987231 | F12: 0.0184945556
A13: Palong Khali | B13: 0.4294392985 | C13: 0.4660143024 | D13: 0.4349186997 | F13: 0.03657500387
A14: Raja Palong | B14: 0.3838270284 | C14: 0.3347018057 | D14: 0.3782233918 | F14: -0.04912522266
A15: Ratna Palong | B15: 0.388004635 | C15: 0.4134000736 | D15: 0.3926309361 | F15: 0.02539543855
A16: Total | B16: =SUMPRODUCT(MSNA_Index2a, Sampl_w, --(HH_head_gender=B$4)) / SUMPRODUCT(Sampl_w,--(HH_head_gender=B$4)) -> 0.4079778727 | C16: =SUMPRODUCT(MSNA_Index2a, Sampl_w, --(HH_head_gender=C$4)) / SUMPRODUCT(Sampl_w,--(HH_head_gender=C$4)) -> 0.4304485578 | D16: =SUMPRODUCT(MSNA_Index2a, Sampl_w) / SUMPRODUCT(Sampl_w) -> 0.4114682086 | F16: 0.02247068511
A18: Interpretation:
A19: It would appear that the intersectoral gap level is lowest in the urben
A20: Teknaf Paurashava Union, but this Union has the highest gap difference
A21: between male and female-headed households.

Sheet Named_ranges
A1: Name | B1: RefersTo | C1: Cells
A2: Equal_Cont | B2: =Betti_Verma_weights!R49C3:R49C12 | C2: 10
A3: HH_head_gender | B3: =MSNA_Data!R2C3:R23C3 | C3: 22
A4: id | B4: =BV_w_sampling_weights!R2C1:R101C1 | C4: 100
A5: Index1a | B5: =Betti_Verma_scores!R5C12:R104C12 | C5: 100
A6: Index1b | B6: =Betti_Verma_scores!R5C13:R104C13 | C6: 100
A7: Index2a | B7: =Betti_Verma_scores!R5C14:R104C14 | C7: 100
A8: Index2b | B8: =Betti_Verma_scores!R5C15:R104C15 | C8: 100
A9: Index2c | B9: =Betti_Verma_scores!R5C16:R104C16 | C9: 100
A10: InfoValue_Cont | B10: =Betti_Verma_weights!R45C3:R45C12 | C10: 10
A11: ls1_food | B11: =MSNA_Data!R2C6:R23C6 | C11: 22
A12: ls2_livelih | B12: =MSNA_Data!R2C7:R23C7 | C12: 22
A13: ls3_shelter | B13: =MSNA_Data!R2C8:R23C8 | C13: 22
A14: ls4_wash | B14: =MSNA_Data!R2C9:R23C9 | C14: 22
A15: ls5_health | B15: =MSNA_Data!R2C10:R23C10 | C15: 22
A16: ls6_educ | B16: =MSNA_Data!R2C11:R23C11 | C16: 22
A17: MSNA_Equal_Cont | B17: =MSNA_BV_weights!R44C3:R44C8 | C17: 6
A18: MSNA_Index1a | B18: =MSNA_BV_scores!R5C12:R26C12 | C18: 22
A19: MSNA_Index1b | B19: =MSNA_BV_scores!R5C13:R26C13 | C19: 22
A20: MSNA_Index2a | B20: =MSNA_BV_scores!R5C14:R26C14 | C20: 22
A21: MSNA_Index2b | B21: =MSNA_BV_scores!R5C15:R26C15 | C21: 22
A22: MSNA_Index2c | B22: =MSNA_BV_scores!R5C16:R26C16 | C22: 22
A23: MSNA_InfoValue_Cont | B23: =MSNA_BV_weights!R40C3:R40C8 | C23: 6
A24: MSNA_UserDef_Cont | B24: =MSNA_BV_weights!R42C3:R42C8 | C24: 6
A25: MSNA_UserDef_first | B25: =MSNA_BV_weights!R22C3:R22C8 | C25: 6
A26: s_weights | B26: =BV_w_sampling_weights!R2C2:R101C2 | C26: 100
A27: Sampl_w | B27: =MSNA_Data!R2C5:R23C5 | C27: 22
A28: Sample_households | B28: =MSNA_Data!R2C4:R23C4 | C28: 22
A29: Stratum | B29: =MSNA_Data!R2C1:R23C1 | C29: 22
A30: Union | B30: =MSNA_Data!R2C2:R23C2 | C30: 22
A31: UserDef_Cont | B31: =Betti_Verma_weights!R47C3:R47C12 | C31: 10
A32: UserDef_first | B32: =Betti_Verma_weights!R27C3:R27C12 | C32: 10
A33: x1_ | B33: =Simulated_Data!R5C2:R104C2 | C33: 100
A34: x10_ | B34: =Simulated_Data!R5C11:R104C11 | C34: 100
A35: x2_ | B35: =Simulated_Data!R5C3:R104C3 | C35: 100
A36: x3_ | B36: =Simulated_Data!R5C4:R104C4 | C36: 100
A37: x4_ | B37: =Simulated_Data!R5C5:R104C5 | C37: 100
A38: x5_ | B38: =Simulated_Data!R5C6:R104C6 | C38: 100
A39: x6_ | B39: =Simulated_Data!R5C7:R104C7 | C39: 100
A40: x7_ | B40: =Simulated_Data!R5C8:R104C8 | C40: 100
A41: x8_ | B41: =Simulated_Data!R5C9:R104C9 | C41: 100
A42: x9_ | B42: =Simulated_Data!R5C10:R104C10 | C42: 100
A43: y1_ | B43: =BV_w_sampling_weights!R2C3:R101C3 | C43: 100
A44: y10_ | B44: =BV_w_sampling_weights!R2C12:R101C12 | C44: 100
A45: y2_ | B45: =BV_w_sampling_weights!R2C4:R101C4 | C45: 100
A46: y3_ | B46: =BV_w_sampling_weights!R2C5:R101C5 | C46: 100
A47: y4_ | B47: =BV_w_sampling_weights!R2C6:R101C6 | C47: 100
A48: y5_ | B48: =BV_w_sampling_weights!R2C7:R101C7 | C48: 100
A49: y6_ | B49: =BV_w_sampling_weights!R2C8:R101C8 | C49: 100
A50: y7_ | B50: =BV_w_sampling_weights!R2C9:R101C9 | C50: 100
A51: y8_ | B51: =BV_w_sampling_weights!R2C10:R101C10 | C51: 100
A52: y9_ | B52: =BV_w_sampling_weights!R2C11:R101C11 | C52: 100
